Cogmind - Beta 15 @@@ ROGUE MODE // 2025.08.14 @ 22:49:59 Player: puppuppit Result: Destroyed by Executioner with Helical Railgun Performance ------------- Evolutions (8) 4000 Regions Visited (32) 6400 Robots Destroyed (1089) 5445 Value Destroyed (48192) 48192 Prototype IDs (159) 3180 Alien Tech Used (9) 1800 Bonus (40730) 40730 TOTAL SCORE: 109747 Bonus ------- Triggered High Security 2000 High Alert Combat Kills 27305 Follower Combat Kills 7031 Registered with UFD 300 Met Optimus in HQ 500 Met Data Miner 300 Met Zhirov 300 Met Warlord at Base 500 MAIN.C Attacked Warlord 500 Warlord Defense Kills 3114 Hacked Protovariant 1000 Scanned by Researcher 500 Acquired SGEMP 2000 Met Optimus at Protoforge 1000 Friendly Fire -5620 Cogmind --------- Core Integrity 0/1450 Matter 260/300 Energy 64/440 System Corruption 7% Temperature Cool (1) Movement Hovering (45) Location -2/Protoforge Parts ------- > --- POWER (2) -------- Light Quantum Reactor Improved Quantum Reactor > --- PROPULSION (8) --- Improved Antigrav System Improved Antigrav System Improved Antigrav System Improved Antigrav System Combat Antigrav System Combat Antigrav System Combat Antigrav System Combat Antigrav System > --- UTILITY (10) ----- 0bPrime Scrap Suit Large Storage Unit Experimental Optical Array Experimental Targeting Computer Concept Weapon Articulator Experimental Target Analyzer Improved Armor Integrity Analyzer Makeshift Medium Armor Plating Improved Remote Force Field > --- WEAPON (4) ------- Overtuned Linear Accelerator Compact Linear Accelerator Compact Linear Accelerator Compact Linear Accelerator > --- INVENTORY (15) --- Improved Antigrav System Improved Antigrav System Experimental Cooling System Concept Weapon Articulator Experimental Core Analyzer Experimental System Purifier Long-range Tractor Beam Concept XC Strikerail Overtuned Linear Accelerator Concept Miniperforator Concept Helical Railcannon Concept Helical Railcannon Concept Helical Railcannon SGEMP Prototype Peak State ------------ > --- POWER ------------ Improved Quantum Reactor Zero-point Reactor > --- PROPULSION ------- Combat Antigrav System Combat Antigrav System Gravjet Array Gravjet Array Gravjet Array > --- UTILITY ---------- Large Storage Unit Advanced Targeting Computer Weapon Mount Experimental Target Analyzer Experimental Core Analyzer AEGIS Remote Shield Experimental Hacking Suite Experimental System Purifier Experimental System Purifier Crosscalibrator > --- WEAPON ----------- Core Cannon Concept XC Strikerail Concept XC Strikerail > --- INVENTORY -------- Improved Quantum Reactor Combat Antigrav System Combat Antigrav System Matter Compressor Long-range Tractor Beam Concept XC Strikerail Concept XC Strikerail Concept XC Strikerail Concept Miniperforator Concept Helical Railcannon Concept Helical Railcannon Concept Helical Railcannon Micro-nuke Launcher SGEMP Prototype [Rating: 241] Favorites ----------- Power Cooled Ion Engine Engine Cooled Ion Engine Power Core Cooled Fission Core Reactor Reinforced Antimatter Reactor Propulsion Combat Linear Gravjet Treads Light Treads Hover Unit Combat Linear Gravjet Utility Large Storage Unit Device Weapon Mount Storage Large Storage Unit Processor Experimental Armor Integrity Analyzer Hackware Hacking Suite Protection Propulsion Shielding Artifact Phase Redirector Weapon Improved Assault Rifle Energy Gun Vortex Shotgun Energy Cannon Advanced Plasma Cannon Ballistic Gun Improved Assault Rifle Ballistic Cannon Hardcell Cannon Launcher Chain Missile Launcher Special Weapon Improved Remote Datajack Impact Weapon Flail Slashing Weapon Power Sword Build | -11 -10 -10 -9 -9 -9 -9 -6 -6 -6 -6 -6 -6 -5 -5 -5 -5 -5 -5 -5 -4 -4 -4 -4 -4 -4 -4 -3 -3 -3 -2 -2 -2 ------- Run | Yrd Mat Min Mat Sto Rec Scr Fac Was Fac Low Low Dat Pro Fac Was Fac Upp Upp War Pro Fac Was Fac Upp Upp Zhi Pro Res Qua Res Tes Frg Slots Evolved 16 | . . . 2 . . . 6 . . . . . . 2 . . . . . . 2 . . . . . . 2 . 2 . . Power 1 | . . . . . . . . . . . . . . . . . . . . . 1 . . . . . . . . . . . Propulsion 6 | . . . . . . . 4 . . . . . . 1 . . . . . . 1 . . . . . . . . . . . Utility 7 | . . . . . . . 2 . . . . . . 1 . . . . . . . . . . . . . 2 . 2 . . Weapon 2 | . . . 2 . . . . . . . . . . . . . . . . . . . . . . . . . . . . . Parts Attached 511 | 7 10 . 19 13 1 2 45 3 25 2 4 . 1 52 8 18 4 6 23 . 26 3 16 1 1 5 2 37 22 32 20 103 Power 63 | 1 . . 3 3 . . 1 2 1 . . . 1 5 1 3 . 2 4 . 2 2 1 . . 1 . 3 1 7 3 16 Engine 12 | 1 . . 3 3 . . 1 . . . . . 1 1 . 1 . . . . . . . . . . . . . . . 1 Core 8 | . . . . . . . . . . . . . . 3 . 2 . 2 1 . . . . . . . . . . . . . Reactor 43 | . . . . . . . . 2 1 . . . . 1 1 . . . 3 . 2 2 1 . . 1 . 3 1 7 3 15 Propulsion 135 | 2 2 . 5 3 1 . 26 1 6 . 1 . . 15 1 6 1 . 6 . 6 1 4 . . 3 1 7 7 5 2 23 Treads 18 | 2 2 . 5 3 1 . 5 . . . . . . . . . . . . . . . . . . . . . . . . . Leg . | . . . . . . . . . . . . . . . . . . . . . . . . . . . . . . . . . Wheel . | . . . . . . . . . . . . . . . . . . . . . . . . . . . . . . . . . Hover 117 | . . . . . . . 21 1 6 . 1 . . 15 1 6 1 . 6 . 6 1 4 . . 3 1 7 7 5 2 23 Flight . | . . . . . . . . . . . . . . . . . . . . . . . . . . . . . . . . . Utility 161 | 2 4 . 3 . . 2 10 . 11 2 . . . 13 2 4 2 2 7 . 12 . 7 1 . 1 . 12 5 11 10 38 Device 80 | 1 1 . . . . 1 3 . 7 . . . . 8 1 2 1 1 3 . 8 . 5 1 . 1 . 4 2 8 5 17 Storage 13 | 1 2 . 1 . . . 1 . 2 . . . . . . . . . . . 1 . . . . . . 1 . 1 2 1 Processor 30 | . . . 2 . . . 2 . 1 2 . . . 2 . 1 . 1 3 . . . . . . . . 3 . 1 3 9 Hackware 22 | . . . . . . 1 4 . 1 . . . . 3 . 1 . . . . 3 . 2 . . . . 4 1 1 . 1 Protection 14 | . 1 . . . . . . . . . . . . . 1 . 1 . 1 . . . . . . . . . . . . 10 Artifact 2 | . . . . . . . . . . . . . . . . . . . . . . . . . . . . . 2 . . . Weapon 152 | 2 4 . 8 7 . . 8 . 7 . 3 . . 19 4 5 1 2 6 . 6 . 4 . 1 . 1 15 9 9 5 26 Energy Gun 8 | . . . . . . . . . . . . . . 2 . . . . 4 . . . . . . . . 1 . . . 1 Energy Cannon 8 | . . . . . . . 1 . . . . . . 2 . . . 1 . . 1 . . . . . . . 1 1 . 1 Ballistic Gun 78 | 2 2 . 7 5 . . 6 . 5 . 2 . . 7 . 1 . 1 1 . 1 . . . . . 1 9 4 6 . 18 Ballistic Cannon 37 | . . . . . . . . . 1 . 1 . . 3 4 3 1 . . . 4 . 4 . . . . 1 4 2 4 5 Launcher 14 | . 2 . 1 1 . . . . 1 . . . . 1 . 1 . . 1 . . . . . 1 . . 3 . . 1 1 Special Weapon 6 | . . . . . . . 1 . . . . . . 4 . . . . . . . . . . . . . 1 . . . . Impact Weapon 1 | . . . . 1 . . . . . . . . . . . . . . . . . . . . . . . . . . . . Slashing Weapon . | . . . . . . . . . . . . . . . . . . . . . . . . . . . . . . . . . Piercing Weapon . | . . . . . . . . . . . . . . . . . . . . . . . . . . . . . . . . . Special Melee Weapon . | . . . . . . . . . . . . . . . . . . . . . . . . . . . . . . . . . Unidentified Prototypes 73 | . . . 3 1 . . 3 . 8 . 1 . . 4 . 2 . . 7 . 2 . . . . 3 . 5 6 3 9 16 Parts Lost 126 | . . . 1 2 . . 7 . 5 . 1 . . 18 . 12 3 . 1 . 2 . 10 . . . 4 3 16 . 9 32 Power 7 | . . . . . . . . . . . . . . 2 . 1 . . . . . . . . . . 1 . 1 . . 2 Propulsion 46 | . . . 1 . . . 6 . 3 . 1 . . 8 . 6 . . . . 1 . 3 . . . . . 7 . 2 8 Utility 27 | . . . . . . . . . . . . . . . . 1 2 . 1 . 1 . 4 . . . 1 2 2 . 5 8 Weapon 46 | . . . . 2 . . 1 . 2 . . . . 8 . 4 1 . . . . . 3 . . . 2 1 6 . 2 14 Highest Loss Streak 11 | . . . 1 1 . . 2 . 3 . 1 . . 3 . 10 2 . 1 . 2 . 3 . . . 3 1 11 . 4 8 To Critical Strikes 5 | . . . . . . . . . . . . . . . . . . . . . . . 2 . . . . . 1 . . 2 Average Backups 12 | . 9 14 13 13 13 12 12 12 12 11 13 14 13 13 12 11 8 12 12 12 11 12 12 12 13 13 13 13 13 12 12 11 Power 1 | . . . . 1 1 . 1 1 1 2 2 2 1 . 1 . 1 3 2 2 1 2 2 2 2 2 1 1 . 1 1 . Propulsion 2 | . 1 2 2 2 2 1 2 4 3 . . . . 1 2 1 2 2 4 4 2 3 2 3 4 4 3 4 4 1 1 2 Utility 5 | . 2 4 4 5 6 6 5 4 3 5 7 7 6 6 6 5 3 4 3 5 5 5 5 4 5 5 5 4 4 6 4 3 Weapon 3 | . 6 7 6 4 4 3 3 3 4 3 4 5 5 3 2 3 1 2 1 1 1 2 2 2 2 1 2 2 3 2 3 4 Tool/Special . | . . . . . . . . . . . . . . . . . . . . . . . . . . . . . . . . . Unused Backups 95 | . 2 . 6 2 . 3 15 2 . 1 3 . 1 8 2 1 . 2 6 1 1 2 1 1 . 1 . 7 1 6 5 15 Power 19 | . . . . . . . 3 2 . 1 . . . 2 . . . 1 4 . 1 . . . . . . 4 . . 1 . Propulsion 15 | . . . 1 2 . . 1 . . . . . . . . 1 . . . . . 1 . 1 . . . 3 . 1 1 3 Utility 42 | . 2 . 2 . . 2 9 . . . 1 . 1 5 1 . . 1 2 1 . 1 1 . . 1 . . 1 3 2 6 Weapon 17 | . . . 3 . . 1 2 . . . 1 . . . 1 . . . . . . . . . . . . . . 2 1 6 Tool/Special 2 | . . . . . . . . . . . 1 . . 1 . . . . . . . . . . . . . . . . . . Average Slot Usage (%) 94 | . 99 100 99 100 100 98 91 93 88 99 99 83 100 97 100 94 85 87 85 86 93 94 91 85 89 75 88 94 94 90 95 88 Engine 4 | . 13 14 11 11 11 11 6 3 . . . . . . . 1 . . . . . . . . . . . . . . . . Reactor 3 | . . . . . . . . 2 6 6 6 6 6 2 2 2 . . 3 4 7 10 10 10 10 9 9 9 5 6 8 7 Treads 7 | . 27 28 21 22 22 22 7 . . . . . . . . . . . . . . . . . . . . . . . . . Hover 22 | . . . . . . . 25 33 33 39 37 37 37 36 38 36 27 27 27 33 35 35 33 30 30 32 35 33 35 32 32 27 Device 6 | . 6 14 . . . . . . 4 15 16 18 18 3 11 7 16 16 12 11 7 5 6 15 15 15 12 10 9 10 14 13 Storage 6 | . 14 14 11 11 11 10 6 6 6 6 6 6 6 5 5 5 5 5 5 5 5 5 5 5 5 5 5 4 4 4 4 4 Processor 7 | . . . 10 11 11 6 1 6 1 3 6 6 6 15 5 2 . 4 9 11 10 10 8 5 5 5 5 6 4 7 4 13 Hackware 7 | . . . . . . 3 17 13 11 . . . . 7 11 15 7 5 . . 7 10 9 5 5 5 5 13 15 18 16 4 Ballistic Gun 20 | . 27 28 43 43 44 44 25 26 23 26 20 6 18 19 1 . 3 4 3 . 1 . . . . . . 7 8 5 4 9 Ballistic Cannon 4 | . . . . . . . . . . . 3 1 5 . 16 18 17 16 4 7 15 19 18 15 19 2 14 6 8 2 8 3 Peak Build Rating 241 | 9 12 13 24 27 25 31 76 78 89 87 86 80 84 107 102 118 111 108 136 133 153 157 161 153 151 153 155 171 188 200 209 241 Average Rating 96 | 6 10 12 21 23 24 25 61 76 78 84 81 64 80 97 94 100 106 106 117 126 143 153 149 144 148 124 141 160 174 170 190 208 On Entrance 94 | . 9 11 13 24 25 24 26 75 78 84 85 80 80 81 95 96 103 105 108 133 125 148 154 144 149 149 151 136 171 81 180 208 Naked Turns . | . . . . . . . . . . . . . . . . . . . . . . . . . . . . . . . . . Heaviest Build 123 | 12 32 31 42 40 40 40 55 63 72 70 72 71 71 74 75 80 76 74 94 96 103 102 106 105 98 98 96 109 123 110 113 114 Greatest Support 122 | 40 40 40 46 46 43 40 108 63 70 70 72 72 72 90 76 90 77 77 87 85 112 106 120 109 101 103 116 120 122 114 114 122 Greatest Overweight (x) 1 | . 1 . 1 . . . 1 . 1 1 . . . 1 . 1 . . 1 1 1 1 1 . . . . 1 1 1 . 1 Average Overweight (x) . | . . . . . . . . . . . . . . . . . . . . . . . . . . . . . . . . . Largest Inventory Capacity 15 | 8 15 15 15 15 15 15 15 15 15 15 15 15 15 15 15 15 15 15 15 15 15 15 15 15 15 15 15 15 15 15 15 15 Average Capacity 14 | 7 14 15 15 15 15 14 15 15 15 15 15 15 15 15 15 15 15 15 15 15 15 15 15 15 15 15 15 15 15 15 15 15 Most Carried 15 | . 15 15 15 15 15 15 15 15 15 15 15 15 15 15 15 15 15 15 15 15 15 15 15 15 15 15 15 15 15 15 15 15 Average Carried 14 | . 9 14 14 14 14 14 14 14 14 12 14 15 14 14 14 14 11 14 14 14 14 14 14 14 14 14 14 14 14 14 14 14 Final Capacity 15 | 8 15 15 15 15 15 15 15 15 15 15 15 15 15 15 15 15 15 15 15 15 15 15 15 15 15 15 15 15 15 15 15 15 Final Carried 15 | . 14 15 15 15 15 15 15 15 15 15 15 15 15 15 15 15 13 15 15 15 15 15 15 15 15 15 14 15 15 15 15 15 Class Distribution -------------------- 29% | Hacker-Gunner 27% | Gunner 18% | Scavenger-Gunner 6% | Mutant 4% | Skirmisher 4% | Derelict-Gunner Dominant Class ---------------- Mutant | -10/Materials Mutant | -10/Mines Gunner | -9/Materials Gunner | -9/Storage Gunner | -9/Recycling Gunner | -9/Scraptown Hacker-Gunner | -6/Factory Hacker-Gunner | -6/Waste Hacker-Gunner | -6/Factory Gunner | -6/Lower Caves Derelict-Gunner | -6/Lower Caves Mutant | -6/Data Miner Derelict-Gunner | -5/Proximity Caves Hacker-Gunner | -5/Factory Scavenger-Gunner | -5/Waste Hacker-Gunner | -5/Factory Gunner | -5/Upper Caves Gunner | -5/Upper Caves Gunner | -5/Warlord Scavenger-Gunner | -4/Proximity Caves Scavenger-Gunner | -4/Factory Scavenger-Gunner | -4/Waste Hacker-Gunner | -4/Factory Gunner | -4/Upper Caves Gunner | -4/Upper Caves Scavenger-Mutant | -4/Zhirov Scavenger-Gunner | -3/Proximity Caves Hacker-Sprinter | -3/Research Hacker-Gunner | -3/Quarantine Wizard-Gunner | -2/Research Hacker-Gunner | -2/Testing Scavenger-Gunner | -2/Protoforge Resources | -11 -10 -10 -9 -9 -9 -9 -6 -6 -6 -6 -6 -6 -5 -5 -5 -5 -5 -5 -5 -4 -4 -4 -4 -4 -4 -4 -3 -3 -3 -2 -2 -2 ----------- Run | Yrd Mat Min Mat Sto Rec Scr Fac Was Fac Low Low Dat Pro Fac Was Fac Upp Upp War Pro Fac Was Fac Upp Upp Zhi Pro Res Qua Res Tes Frg Matter Collected 48796 | 318 1031 201 2046 2658 238 1011 4589 223 1595 218 198 . 311 3620 355 2174 255 208 424 289 2933 811 3033 237 99 571 297 3982 2231 889 2731 9020 Remotely 7079 | . . . . . . . . . 466 54 59 . 83 358 . 503 112 . . . 788 329 729 . . . . 506 1063 . 1051 978 Salvage Created 55468 | 178 864 52 3532 5147 950 . 5491 278 2146 169 39 . 394 4649 478 1874 90 171 1243 249 3005 1197 1729 154 10 303 167 3679 1514 948 1710 13058 Parts 2451 | 17 67 3 225 255 35 . 241 5 68 3 2 . 16 260 2 66 5 4 38 11 119 8 53 5 . 1 8 157 90 39 53 595 Haulers Intercepted 27 | . 1 . 5 5 . . 5 . 2 . . . . 3 . . . . . . 3 . 1 . . . . 2 . . . . Recyclers Shooed 49 | 1 2 . 1 9 2 . 11 . 2 . . . . 5 . . . . . . 6 . 3 . . . . 6 . 1 . . Parts Field Recycled . | . . . . . . . . . . . . . . . . . . . . . . . . . . . . . . . . . Retrieved Matter . | . . . . . . . . . . . . . . . . . . . . . . . . . . . . . . . . . Parts Self-Destructed 67 | . . . . . . . . . . 1 1 . 34 . . . 5 18 . 5 . . . 2 . . 1 . . . . . Prevented 1 | . . . . . . . . . . . . . . . . . . . . 1 . . . . . . . . . . . . Kills | -11 -10 -10 -9 -9 -9 -9 -6 -6 -6 -6 -6 -6 -5 -5 -5 -5 -5 -5 -5 -4 -4 -4 -4 -4 -4 -4 -3 -3 -3 -2 -2 -2 ------- Run | Yrd Mat Min Mat Sto Rec Scr Fac Was Fac Low Low Dat Pro Fac Was Fac Upp Upp War Pro Fac Was Fac Upp Upp Zhi Pro Res Qua Res Tes Frg Combat Hostiles Destroyed 718 | . 14 . 56 34 3 . 52 1 36 1 3 . 6 61 . 35 5 3 25 11 43 6 32 5 2 . 8 42 18 7 27 182 Guns 349 | . 4 . 37 22 3 . 29 . 18 1 . . 4 44 . . 1 . 17 3 1 . . . . . . 17 12 3 6 127 Cannons 148 | . . . . . . . . . . . . . 2 . . 17 4 3 . . 21 5 22 2 . . . 16 2 4 15 35 AOE 221 | . 10 . 19 12 . . 23 1 18 . 3 . . 17 . 18 . . 8 8 21 1 10 3 2 . 8 9 4 . 6 20 Classes Destroyed 31 | 3 7 . 3 1 . . 3 1 1 1 . . . 1 . 2 . . 3 1 . . . . . . . . . . 1 3 Worker 119 | 2 1 . 17 54 . . 17 . 1 . . . . 12 . . . . . . 2 . 3 . . . . 6 2 1 . 1 Builder 55 | . 5 . 12 7 3 . 6 . . . . . . 3 . . . . . . 5 . 1 . . . . 6 2 1 2 2 Tunneler 9 | 3 . . 1 . . . 1 . 1 . . . . 2 . . . . . . . . 1 . . . . . . . . . Hauler 27 | . 1 . 5 5 . . 5 . 2 . . . . 3 . . . . . . 3 . 1 . . . . 2 . . . . Recycler 121 | 1 4 1 8 31 9 . 19 . 5 . . . . 7 . 2 . . . . 12 . 5 . . . . 10 3 2 2 . Carrier 3 | . . . . . . . . . . . . . . . . 1 . . . . . . . . . . . . . . 1 1 Mechanic 15 | . 1 . 3 1 . . 1 . . . . . . . . . . . . . . . . . . . . . 1 . 1 7 Operator 8 | . 1 . 1 1 . . . . 1 . . . . 1 . . . . . . . . . . . . . . 1 . . 2 Drone 11 | . . . . . . . . . . . . . . . . . . . . 2 . . . . . . . . . . . 9 Watcher 40 | . 3 . 5 2 . . 6 . 1 . . . . 4 . 3 . . . . 7 . . . . . . 6 . . 1 2 Swarmer 111 | . 6 . 6 3 . . 11 . 4 . 3 . . 7 . 4 5 . . 2 18 . 4 . . . 5 9 3 . 5 16 Cutter 9 | . . . . . . . . . . . . . . 9 . . . . . . . . . . . . . . . . . . Saboteur 6 | . . . . . . . . . . . . . . . . 1 . . 2 . . . . . . . . . . . . 3 Grunt 242 | . 8 . 36 16 . . 27 . 17 . . . 3 18 . 12 . 1 11 4 5 . 14 3 . . 2 11 3 . 6 45 Brawler 22 | . . . 2 1 . . . . 2 . . . . 3 . . . . 3 . . . . . . . 1 1 . . 1 8 Duelist 19 | . . . . 2 . . . . . . . . 1 1 . 4 . 2 2 . 1 . 1 1 . . . . . . . 4 Protector 18 | . . . 2 1 . . . . 3 . . . . . . 2 . . 3 . . . . . . . . . . . . 7 Researcher 3 | . . . . . . . . . . . . . . . . . . . . . . . . . . . . . . . . 3 Sentry 67 | . . . 10 11 3 . 3 . 2 . . . 2 4 . 6 . . . 2 6 . 3 . . . . 3 . 3 3 6 Demolisher 2 | . . . . . . . . . . . . . . . . . . . . . . . . . . . . . . . . 2 Specialist 7 | . . . . . . . . . 2 . . . . 2 . . . . 1 . . . . . . . . . . . . 2 Hunter 47 | . . . . . . . 4 . 5 . . . . 7 . 2 . . . . 2 . 4 . 2 . . 2 3 . 4 12 Programmer 94 | . . . . . . . 7 . 1 . . . . 10 . 3 . . 1 1 11 . 6 1 . . . 16 9 4 6 18 Compactor 7 | . . . . . . . . 1 . . . . . . . . . . . . . 6 . . . . . . . . . . Enhanced Demolisher 1 | . . . . . . . . . . . . . . . . . . . 1 . . . . . . . . . . . . . Hotshot 6 | . . . . . . . . . . . . . . . . . . . . . . . . . . . . . . . . 6 Decapitator 1 | . . . . . . . . . . . . . . . . . . . . . . . . . . . . . . . . 1 Immortal 2 | . . . . . . . . . . . . . . . . . . . . . . . . . . . . . . . . 2 Striker 15 | . . . . . . . . . . . . . . . . . . . 1 . . . . . . . . . . . . 14 Executioner 26 | . . . . . . . . . . . . . . . . . . . 1 . . . . . . . . . . . . 25 Alpha 7 1 | . . . . . . . . . . . . . . . . . . . . . . . . . . . . . . . 1 . Protovariant G 1 | . . . . . . . . . . . . . . . . . . . . . . . . . . . . . . . 1 . Elite 1 | . . . . . . . . . . . . . . . . . . . . . . . . . . . . . . . . 1 Scrapoid 5 | . . . . . . . 1 . . . . . . . . . . . . . . . . . . . . . . 2 . 2 Scraphulk 1 | . . . . . . . . . . . . . . . . . . . . . . . . . . . . . . . . 1 Decomposer 1 | . . . . . . . . . . 1 . . . . . . . . . . . . . . . . . . . . . . Thief 1 | . . . . . . . . . . 1 . . . . . . . . . . . . . . . . . . . . . . Wasp 4 | . . . . . . . . 2 1 . . . . . . 1 . . . . . . . . . . . . . . . . Thug 7 | . . . . . . . . . . . . . . . . 3 . . 4 . . . . . . . . . . . . . Best Kill Streak 58 | 4 10 1 15 58 5 . 9 1 15 1 3 . 5 11 . 14 5 3 11 7 17 3 7 4 2 . 5 8 6 4 6 14 Combat Bots Only 13 | . 3 . 13 5 2 . 8 1 10 1 3 . 5 7 . 13 5 3 11 7 7 3 7 4 2 . 5 7 5 2 5 13 Max Kills in Single Turn 14 | 1 3 1 4 5 1 . 5 3 7 1 3 . 1 4 . 14 1 1 5 2 5 1 4 3 2 . 2 3 2 3 4 5 Gunslinging 2 | . . . 1 . . . 1 . . . . . . . . . . . 1 . . . . . . . . . . . . 2 Exploded 13 | . 2 . 3 5 . . 4 1 6 . 3 . . 3 . 13 . . 3 2 5 1 4 3 2 . 2 3 2 . 3 3 Melee . | . . . . . . . . . . . . . . . . . . . . . . . . . . . . . . . . . Uniques/NPCs Destroyed . | . . . . . . . . . . . . . . . . . . . . . . . . . . . . . . . . . Combat | -11 -10 -10 -9 -9 -9 -9 -6 -6 -6 -6 -6 -6 -5 -5 -5 -5 -5 -5 -5 -4 -4 -4 -4 -4 -4 -4 -3 -3 -3 -2 -2 -2 -------- Run | Yrd Mat Min Mat Sto Rec Scr Fac Was Fac Low Low Dat Pro Fac Was Fac Upp Upp War Pro Fac Was Fac Upp Upp Zhi Pro Res Qua Res Tes Frg Hostile Shots Fired 3149 | . 39 . 120 74 . . 246 . 148 2 24 . 4 274 . 213 43 16 11 13 147 . 272 4 4 . 36 233 277 52 218 679 Missed 1289 | . 15 . 42 24 . . 98 . 54 . 11 . 1 112 . 104 12 8 5 6 72 . 109 2 3 . 18 98 120 17 88 270 Hits 1860 | . 24 . 78 50 . . 148 . 94 2 13 . 3 162 . 109 31 8 6 7 75 . 163 2 1 . 18 135 157 35 130 409 Melee 29 | . . . 5 . . . . . . 2 . . . 5 . 1 . . . . . . . . . . . . 3 . 1 12 Projectile 1831 | . 24 . 73 50 . . 148 . 94 . 13 . 3 157 . 108 31 8 6 7 75 . 163 2 1 . 18 135 154 35 129 397 AOE 5 | . . . . . . . . . . . . . . 4 . . . . . . . . . . . . . . . . . 1 Critical Strikes 89 | . . . 1 2 . . 12 . 1 . 1 . . 3 . 7 1 1 2 . 8 . 5 . . . . 12 10 1 1 21 Actively Blocked 1 | . . . . . . . . . . . . . . . . 1 . . . . . . . . . . . . . . . . Part Disruptions 12 | . . . . . . . . . . . . . . . . 1 . 2 . . 2 . . . . . . 2 . . 1 4 Damage Taken 36855 | . 250 . 1078 729 . . 2634 70 1815 18 102 . 67 3327 . 2397 500 170 435 212 1420 55 2800 32 25 . 407 1885 4225 825 2274 9103 Core 4185 | . 10 . 126 88 . . 315 9 239 . 21 . . 425 . 265 19 27 89 . 158 . 112 . . . 60 148 832 99 250 893 Absorbed by Shields 5687 | . 30 . 15 . . . 15 . . . . . . . . . . . . . . . 30 11 . . . 1180 52 157 845 3352 Redirected to Core 135 | . . . . . . . . . . . . . . . . . . . . . . . . . . . . . 135 . . . Redirected to Shielding 382 | . . . . . . . . . . . . . . . . 81 . . 7 20 . . . . . . . . . . . 274 Ignored by Resistances 425 | . . . . . . . . . . . . . . . . . . . . . 27 . 109 . . . . 89 200 . . . Regen/Repaired (Parts) 5861 | . . . 110 113 . . 706 151 259 . . . . 239 219 107 . . 444 . 713 134 695 . . . . 205 406 304 419 637 Core Remaining (%) 52 | 100 . 96 . . . 46 . . . . . . 31 . . . . . . 17 . . . . . . 71 . 8 . . . Volleys Fired 1869 | 12 69 1 130 162 19 . 167 6 62 7 4 . 12 159 5 56 7 4 36 11 108 18 89 4 3 10 12 171 53 47 79 346 Largest 4 | 2 2 2 4 4 4 . 4 4 4 4 1 . 4 4 4 4 4 4 4 2 4 4 4 3 1 1 3 4 4 4 4 4 Hottest 364 | 40 53 46 102 119 92 . 140 125 140 133 49 . 134 214 190 190 171 218 203 220 270 262 270 270 160 56 165 235 216 300 232 364 Shots Fired 5767 | 24 133 2 511 633 76 . 618 24 210 20 3 . 36 537 16 175 23 17 96 16 259 69 236 11 3 10 14 428 159 93 202 1113 Gun 4241 | 24 124 2 497 626 76 . 603 23 203 20 . . 24 512 . . 1 1 96 10 17 . . . . . . 231 118 44 74 915 Cannon 1386 | . . . . . . . . . 1 . 2 . 10 10 16 173 22 16 . . 233 68 233 10 . 10 8 186 37 49 126 176 Launcher 134 | . 9 . 14 7 . . 13 1 6 . 1 . 2 11 . 2 . . . 6 9 1 3 1 3 . 6 11 4 . 2 22 Special 6 | . . . . . . . 2 . . . . . . 4 . . . . . . . . . . . . . . . . . . Kinetic 5399 | 24 124 2 497 626 76 . 603 23 204 20 2 . 34 495 16 173 23 13 11 . 194 68 233 10 . 10 8 400 155 76 200 1079 Thermal 121 | . . . . . . . . . . . . . . 15 . . . 4 . . 56 . . . . . . 17 . 17 . 12 Explosive 134 | . 9 . 14 7 . . 13 1 6 . 1 . 2 11 . 2 . . . 6 9 1 3 1 3 . 6 11 4 . 2 22 Electromagnetic 12 | . . . . . . . . . . . . . . 12 . . . . . . . . . . . . . . . . . . Entropic 95 | . . . . . . . . . . . . . . . . . . . 85 10 . . . . . . . . . . . . Robot Hit Streak 69 | 6 7 4 24 17 27 . 24 12 16 9 . . 9 25 9 13 3 11 37 10 20 13 9 5 4 12 17 24 18 8 14 69 Robot Miss Streak 9 | 2 4 . 4 4 1 . 6 5 9 1 . . 2 6 1 9 3 1 4 1 3 4 5 2 1 . 1 3 4 3 4 4 Penetration Max 3 | . . . . . . . 2 . 1 . . . 1 2 . 2 . . . . 1 . . . . . . 2 1 1 2 3 Secondary Targets 61 | . . . 4 2 . . 7 . 5 . . . . 4 . . . . 10 . . . . . . . . 1 1 . . 27 Max Gunslinging Chain 2 | . . . 1 1 . . 1 . 1 . . . . 1 . . . . 2 . . . . . . . . 1 1 . . 2 Shots Hit Robots 3556 | 15 70 1 290 351 48 . 379 21 126 14 . . 20 315 9 68 6 12 86 12 167 48 112 4 2 10 3 290 85 49 125 818 Core Hits 2255 | 9 43 1 158 182 22 . 269 13 142 5 3 . 18 192 2 57 5 3 104 24 117 16 65 12 8 6 18 130 51 27 64 489 Critical Kills 137 | . . . . 1 . . 3 . 1 . . . 2 26 2 8 . . . . 1 . 2 . . . . 6 1 1 5 78 Critical Parts Destroyed 231 | . . . 1 3 . . 5 . 3 . . . 3 37 1 14 . 1 8 1 3 . 2 . . 3 . 10 . 1 11 124 Critical Strikes 459 | . . . 1 4 . . 8 . 4 1 . . 5 67 5 24 . 1 8 1 17 2 20 . . 4 . 21 1 3 31 231 Burn 1 | . . . . . . . . . . . . . . 1 . . . . . . . . . . . . . . . . . . Destroy 376 | . . . 1 4 . . 8 . 4 1 . . 5 66 4 23 . 1 . . 4 . 4 . . 4 . 16 1 2 18 210 Blast 73 | . . . . . . . . . . . . . . . 1 1 . . . . 13 2 16 . . . . 5 . 1 13 21 Detonate 9 | . . . . . . . . . . . . . . . . . . . 8 1 . . . . . . . . . . . . Melee Attacks 2 | . . . . 2 . . . . . . . . . . . . . . . . . . . . . . . . . . . . Impact 2 | . . . . 2 . . . . . . . . . . . . . . . . . . . . . . . . . . . . Slashing . | . . . . . . . . . . . . . . . . . . . . . . . . . . . . . . . . . Piercing . | . . . . . . . . . . . . . . . . . . . . . . . . . . . . . . . . . Sneak Attacks . | . . . . . . . . . . . . . . . . . . . . . . . . . . . . . . . . . Combat Hostiles . | . . . . . . . . . . . . . . . . . . . . . . . . . . . . . . . . . Follow-up Attacks . | . . . . . . . . . . . . . . . . . . . . . . . . . . . . . . . . . Damage Inflicted 149570 | 172 1609 17 6231 6928 768 . 11385 1410 5768 350 292 . 626 9817 242 6390 191 358 8897 1411 9656 2111 7100 698 509 182 1643 11703 3311 2778 5963 41054 Guns 75970 | 172 1031 17 4515 6092 768 . 8044 447 2886 350 . . 228 7109 . . 27 14 5977 440 397 . . . . . . 5605 2240 809 1607 27195 Cannons 31692 | . . . . . . . . . . . . . 193 144 242 2284 164 344 . . 5639 1827 4391 144 . 182 . 4413 443 1337 3454 6491 Explosions 41645 | . 578 . 1716 836 . . 3341 963 2864 . 292 . 205 2564 . 4106 . . 2920 971 3620 284 2625 554 509 . 1643 1685 588 632 902 7247 Melee . | . . . . . . . . . . . . . . . . . . . . . . . . . . . . . . . . . Ramming 263 | . . . . . . . . . 18 . . . . . . . . . . . . . 84 . . . . . 40 . . 121 Kinetic 97600 | 172 1031 17 4515 6092 768 . 8044 447 2886 350 . . 421 6885 242 2284 191 251 143 . 4570 1827 4391 144 . 182 . 9546 2683 1322 5061 33135 Thermal 13375 | . . . . . . . 125 . 59 . . . . 954 . 3432 . 107 2920 . 2540 . 1391 . . . . 472 . 824 . 551 Explosive 31708 | . 578 . 1716 836 . . 3216 963 2740 . 292 . 205 1786 . 674 . . . 935 2489 284 1234 554 509 . 1643 1685 588 632 902 7247 Electromagnetic 350 | . . . . . . . . . 65 . . . . 192 . . . . . 36 57 . . . . . . . . . . . Impact . | . . . . . . . . . . . . . . . . . . . . . . . . . . . . . . . . . Slashing . | . . . . . . . . . . . . . . . . . . . . . . . . . . . . . . . . . Piercing . | . . . . . . . . . . . . . . . . . . . . . . . . . . . . . . . . . Entropic 6274 | . . . . . . . . . . . . . . . . . . . 5834 440 . . . . . . . . . . . . Highest Corruption 35 | . . . . . . . 5 5 6 6 6 6 6 7 7 15 15 15 15 1 8 8 18 18 18 18 19 17 27 6 16 35 Average Corruption 9 | . . . . . . . 3 5 5 6 6 6 6 4 7 9 15 15 15 1 4 8 11 18 18 18 18 9 23 5 12 17 Corruption Purged 43 | . . . . . . . 3 . . . . . . . . . . . . . . . . . . . . . . . . 40 Corruption Blocked . | . . . . . . . . . . . . . . . . . . . . . . . . . . . . . . . . . Effects 718 | . . . . . . . 48 6 25 15 14 2 12 38 7 48 11 18 1 7 26 13 57 9 7 8 8 67 67 4 52 148 Message Errors 158 | . . . . . . . 13 3 5 2 4 . 9 7 4 12 1 2 . 2 5 . 9 2 . 3 . 17 10 1 15 32 Matter Fused 168 | . . . . . . . 12 . 7 4 6 . 1 8 1 11 1 4 . 1 11 5 18 3 2 3 2 16 16 1 8 27 Heat Flow Errors 54 | . . . . . . . 2 . 2 2 . 1 1 2 2 4 1 3 . 1 2 2 . 1 1 . . 3 5 1 6 12 Energy Discharges 81 | . . . . . . . 6 1 1 2 3 . 1 5 . 2 3 5 . 1 1 2 11 1 2 1 3 4 4 . 7 15 Parts Rejected 19 | . . . . . . . 2 . . . . . . 3 . 2 . . . . . 1 1 . . . 1 1 3 . 1 4 Parts Fused 2 | . . . . . . . . . . . . . . . . . . . . . . . . . . . . . 1 . . 1 Data Loss (minor) 66 | . . . . . . . 4 . 4 4 . 1 . 6 . 2 1 2 1 1 4 . 5 1 1 . . 2 3 . 6 18 Data Loss (major) 36 | . . . . . . . 2 2 3 . . . . 1 . 2 . 1 . 1 1 1 . . 1 1 2 5 4 1 2 6 Misfires 20 | . . . . . . . 3 . . 1 . . . 1 . 1 2 1 . . 1 . . 1 . . . 6 3 . . . Alerts 12 | . . . . . . . . . 1 . . . . 3 . 1 . . . . . . 3 . . . . . 1 . 1 2 Misdirections 42 | . . . . . . . . . . . . . . . . 8 1 . . . . . 8 . . . . 3 7 . 3 12 Weapon Failures 60 | . . . . . . . 4 . 2 . 1 . . 2 . 3 1 . . . 1 2 2 . . . . 10 10 . 3 19 Overload Shots . | . . . . . . . . . . . . . . . . . . . . . . . . . . . . . . . . . Overflow Damage 3100 | . 4 . 66 21 . . 63 . 12 . . . . 105 . 217 . 15 80 15 438 18 439 . . 23 101 257 54 175 270 727 Projectiles 1410 | . . . . . . . . . . . . . . . . . . 15 . . 216 18 234 . . 23 . 195 18 165 125 401 Explosions 1661 | . 4 . 66 21 . . 63 . 12 . . . . 105 . 217 . . 80 15 222 . 176 . . . 101 62 36 10 145 326 Melee 29 | . . . . . . . . . . . . . . . . . . . . . . . 29 . . . . . . . . . Knockbacks 164 | . . . . . . . . . . . . . 2 . . 8 1 1 . . 17 . 28 . . 2 . 39 7 . 20 39 Impact 3 | . . . . . . . . . . . . . . . . . . . . . . . 1 . . . . . . . . 2 Kinetic 149 | . . . . . . . . . . . . . 2 . . 7 1 1 . . 17 . 25 . . 1 . 35 6 . 20 34 Secondary 12 | . . . . . . . . . . . . . . . . 1 . . . . . . 2 . . 1 . 4 1 . . 3 Self-Inflicted Damage 1533 | . 24 . 77 84 . . 37 71 137 . . . . 198 . 33 . . . 69 . . 77 . . . 15 111 48 172 5 375 Shots 36 | . 1 . 2 5 . . 2 3 6 . . . . 4 . 1 . . . 1 . . 1 . . . 1 2 1 2 1 3 Rammed 6 | . . . . . . . . . 1 . . . . . . . . . . . . . 2 . . . . . 1 . . 2 Targets Rammed 6 | . . . . . . . . . 1 . . . . . . . . . . . . . 2 . . . . . 1 . . 2 Kicked . | . . . . . . . . . . . . . . . . . . . . . . . . . . . . . . . . . Crushed . | . . . . . . . . . . . . . . . . . . . . . . . . . . . . . . . . . Highest Temperature 468 | . 5 . 202 88 35 . 291 64 239 264 24 126 86 468 141 371 284 333 162 234 368 218 425 268 148 . 90 325 187 214 214 359 Average Temperature 64 | . 2 . 28 20 14 . 75 24 79 94 9 77 34 79 62 62 53 79 31 102 74 65 105 59 64 . 28 52 60 46 59 72 Received Heat Transfer 4754 | . 85 . 355 252 . . 762 . 342 . 45 . 18 516 . 624 120 . 54 9 120 . 213 6 . . 27 207 243 21 269 466 Effects 21 | . . . . . . . 1 . . . . . . 2 . 4 . 1 . 2 6 . 3 1 . . . . . . . 1 Shutdowns 2 | . . . . . . . . . . . . . . . . . . . . . 2 . . . . . . . . . . . Energy Bleed 5 | . . . . . . . . . . . . . . 1 . 1 . 1 . . . . 1 . . . . . . . . 1 Interference 12 | . . . . . . . 1 . . . . . . . . 2 . . . 2 4 . 2 1 . . . . . . . . Matter Decay 1 | . . . . . . . . . . . . . . . . 1 . . . . . . . . . . . . . . . . Short Circuit 1 | . . . . . . . . . . . . . . 1 . . . . . . . . . . . . . . . . . . Siege Activations . | . . . . . . . . . . . . . . . . . . . . . . . . . . . . . . . . . Martial Activations . | . . . . . . . . . . . . . . . . . . . . . . . . . . . . . . . . . Shielding Activations . | . . . . . . . . . . . . . . . . . . . . . . . . . . . . . . . . . Robots Disrupted 1 | . . . . . . . . . . . . . . 1 . . . . . . . . . . . . . . . . . . Combat Hostiles 1 | . . . . . . . . . . . . . . 1 . . . . . . . . . . . . . . . . . . Robots Corrupted . | . . . . . . . . . . . . . . . . . . . . . . . . . . . . . . . . . Combat Hostiles . | . . . . . . . . . . . . . . . . . . . . . . . . . . . . . . . . . Parts Fried 2 | . . . . . . . . . 1 . . . . . . . . . . . . . 1 . . . . . . . . . Impact Corruptions 4 | . . . . . . . . . . . . . . . . . . . . . . . 2 . . 1 . . . . . 1 Robots Melted . | . . . . . . . . . . . . . . . . . . . . . . . . . . . . . . . . . Combat Hostiles . | . . . . . . . . . . . . . . . . . . . . . . . . . . . . . . . . . Parts Melted 15 | . . . . . . . 1 . . . . . . . . 2 . . 3 . 3 . 1 . . . . . . . . 5 Heat Transferred 10672 | . . . . . . . 100 . 50 . . . . 809 . 1975 . 200 2200 . 3050 . 1050 . . . . 592 . 296 . 350 Parts Sabotaged 3 | . . . . . . . . . . . . . . . . 3 . . . . . . . . . . . . . . . . Parts Stolen 1 | . . . . . . . . . . 1 . . . . . . . . . . . . . . . . . . . . . . Parts Stripped . | . . . . . . . . . . . . . . . . . . . . . . . . . . . . . . . . . Power Chain Reactions 3 | . . . . . . . . . . . . . . 3 . . . . . . . . . . . . . . . . . . Alert | -11 -10 -10 -9 -9 -9 -9 -6 -6 -6 -6 -6 -6 -5 -5 -5 -5 -5 -5 -5 -4 -4 -4 -4 -4 -4 -4 -3 -3 -3 -2 -2 -2 ------- Run | Yrd Mat Min Mat Sto Rec Scr Fac Was Fac Low Low Dat Pro Fac Was Fac Upp Upp War Pro Fac Was Fac Upp Upp Zhi Pro Res Qua Res Tes Frg Maximum Alert Level 5 | . 1 . 4 5 2 . 5 3 5 . . . . 5 2 5 . . . . 5 4 5 . . . . 5 5 4 4 5 Low Security (%) 15 | 100 98 100 24 . . . 23 . . . . . . 6 . . . . . . 17 . . . . . . 6 . . . . Level 1 8 | . 1 . 26 . 9 . 18 . . . . . . 12 . 10 . . . . 7 . . . . . . 15 . . . . Level 2 17 | . . . 26 38 90 . 6 81 11 . . . . 42 100 14 . . . . 9 . 4 . . . . 10 . . 2 3 Level 3 15 | . . . 12 11 . . 12 18 1 . . . . 11 . 8 . . . . 16 63 11 . . . . 37 11 38 75 7 Level 4 20 | . . . 9 38 . . 20 . 16 . . . . 4 . 8 . . . . 48 36 39 . . . . 26 77 61 21 6 Level 5 18 | . . . . 11 . . 18 . 30 . . . . 23 . 1 . . . . . . 45 . . . . . 10 . . 83 High Security 3 | . . . . . . . . . 39 . . . . . . 54 . . . . 1 . . . . . . 3 . . . . Max Security . | . . . . . . . . . . . . . . . . . . . . . . . . . . . . . . . . . Sterilizations 1 | . . . 1 . . . . . . . . . . . . . . . . . . . . . . . . . . . . . Peak Influence 8102 | 15 204 52 1234 1619 642 . 2036 711 2780 . . . . 1978 691 3969 . . . . 1629 1149 2714 . . . . 2481 1722 1266 1215 8102 Initial 1395 | . . 52 . 514 622 . . 711 431 . . . . 83 691 410 . . . . 150 1100 699 . . . . 90 1395 903 711 679 Average 1338 | 2 89 8 450 1025 504 . 805 675 1884 . . . . 845 641 1921 . . . . 938 1075 1741 . . . . 836 1368 1107 917 4816 Influence Increases 41371 | 30 573 5 1892 1725 176 . 2667 46 3115 5 85 . 281 3251 6 4317 290 180 470 200 2671 79 3245 120 50 5 225 3176 1407 819 1542 8718 Destroy 0b10 Robot/C 16900 | . 280 . 1080 680 60 . 1160 . 1320 . 60 . 220 1320 . 1320 100 60 440 180 860 . 800 100 40 . 160 1320 360 240 580 4160 Destroy 0b10 Robot/NC 2235 | 30 80 5 270 510 60 . 290 . 95 5 . . . 160 . 65 . . 15 10 145 . 70 . . 5 . 155 45 35 30 155 Destroy Leader 3192 | . 58 . 270 224 . . 324 . 266 . 10 . . 284 . 178 10 . . 10 210 . 152 20 10 . 20 286 60 84 72 644 Allied During Kill 3946 | . . . . 3 . . 136 . 878 . . . 61 85 . 1026 . . . . . . 385 . . . . 308 . 88 28 948 Successful Hack 1085 | . 38 . 62 32 40 . 129 . 42 . . . . 76 . 48 . . . . 38 . 30 . . . . 122 85 . 131 212 Select Force Hacks 280 | . 60 . 90 60 . . . . . . . . . 20 . . . . . . . . . . . . . . . . 50 . Disable Machine 2790 | . . . 15 30 15 . 90 . 240 . . . . 375 . 375 . . . . 390 . 210 . . . . 90 135 60 120 645 Anti-Garrison Action 300 | . . . . . . . . . . . . . . . . . . . . . . . . . . . . 150 . . . 150 Destroy Structure 4073 | . 57 . 105 171 1 . 253 46 214 . . . . 436 6 210 . . . . 338 64 488 . . . . 430 182 222 261 589 Advance Influence 150 | . . . . . . . . . . . . . . . . . . . . . 150 . . . . . . . . . . . Partial Spotted 585 | . . . . . . . 90 . 15 . . . . 30 . 15 . . . . 75 15 90 . . . . 45 . 30 15 165 Lose Combat Pursuer 5835 | . . . . 15 . . 195 . 45 . 15 . . 465 . 1080 180 120 15 . 465 . 1020 . . . 45 270 540 60 255 1050 Influence Decreases 33800 | 30 438 140 673 1346 1404 370 634 1462 952 1243 534 1093 148 1408 1395 945 1616 731 2354 398 1042 1239 1534 1103 399 1383 90 830 2282 1159 1599 1826 Entered New Map 18805 | . . 83 . 705 976 370 . 1322 186 1029 294 1093 . 50 1285 177 1466 501 2082 198 . 1059 300 1003 329 1378 . 45 1086 703 555 530 Time Decay 9465 | 30 438 57 663 601 428 . 474 140 286 214 230 . 148 648 110 238 120 190 262 200 562 160 494 100 70 5 50 595 416 356 464 716 Lost Part 1250 | . . . 10 20 . . 60 . 50 . 10 . . 180 . 120 30 . 10 . 20 . 100 . . . 40 30 160 . 90 320 Lost Ally 1880 | . . . . 20 . . 100 . 430 . . . . 80 . 260 . 40 . . 10 20 340 . . . . 160 20 100 40 260 Purge Threat 2400 | . . . . . . . . . . . . . . 450 . 150 . . . . 450 . 300 . . . . . 600 . 450 . Squads Dispatched 303 | . 3 . 10 17 . . 29 . 29 . . . . 41 . 29 . . . . 21 . 30 . . . 1 29 19 13 15 17 Investigation 103 | . 2 . 5 5 . . 17 . 5 . . . . 14 . 3 . . . . 10 . 12 . . . . 9 4 4 4 9 Extermination 40 | . . . . . . . 7 . 2 . . . . 5 . 1 . . . . 4 . 4 . . . . 8 2 2 3 2 Reinforcement 49 | . 1 . 1 2 . . 3 . 4 . . . . 11 . 3 . . . . 4 . 6 . . . . 2 1 3 3 5 Assault 83 | . . . 4 1 . . 2 . 16 . . . . 5 . 22 . . . . 3 . 8 . . . 1 6 6 3 5 1 Garrison 28 | . . . . 9 . . . . 2 . . . . 6 . . . . . . . . . . . . . 4 6 1 . . Intercept . | . . . . . . . . . . . . . . . . . . . . . . . . . . . . . . . . . Searches Triggered . | . . . . . . . . . . . . . . . . . . . . . . . . . . . . . . . . . Data Miner Redirects 34 | . . . . . . . . . . . . . . 9 . . . . . . 1 . 10 . . . . 3 3 3 5 . Construction Impeded 12 | . . . . 1 . . . . 2 . . . . 3 . 1 . . . . . . 2 . . . . 1 1 1 . . Haulers Reinforced 6 | . . . . . . . 2 . 1 . . . . 1 . . . . . . . . 2 . . . . . . . . . Active Scanning Responses . | . . . . . . . . . . . . . . . . . . . . . . . . . . . . . . . . . Cargo Convoy Interrupts 2 | . . . . . . . . . 1 . . . . 1 . . . . . . . . . . . . . . . . . . Stealth | -11 -10 -10 -9 -9 -9 -9 -6 -6 -6 -6 -6 -6 -5 -5 -5 -5 -5 -5 -5 -4 -4 -4 -4 -4 -4 -4 -3 -3 -3 -2 -2 -2 --------- Run | Yrd Mat Min Mat Sto Rec Scr Fac Was Fac Low Low Dat Pro Fac Was Fac Upp Upp War Pro Fac Was Fac Upp Upp Zhi Pro Res Qua Res Tes Frg Distress Signals 48 | . . . 2 1 . . 5 . 3 . . . . 7 . 2 . . . . 4 . 9 . . . . 2 6 . 1 6 Communications Jammed . | . . . . . . . . . . . . . . . . . . . . . . . . . . . . . . . . . Distress Signals . | . . . . . . . . . . . . . . . . . . . . . . . . . . . . . . . . . Times Spotted 1631 | . 22 . 72 39 . . 87 6 82 1 6 . 10 114 . 155 17 13 84 8 80 6 111 5 1 . 18 89 107 16 58 424 Peak Tracking Total 29 | . 4 . 12 5 . . 7 3 12 1 4 . 8 10 . 29 11 10 16 5 8 2 22 3 2 . 9 7 19 4 11 17 Tactical Retreats 156 | . . . . 1 . . 6 . 2 . 2 . . 19 . 17 3 3 1 . 15 . 23 . . . 2 9 11 2 9 31 Traps | -11 -10 -10 -9 -9 -9 -9 -6 -6 -6 -6 -6 -6 -5 -5 -5 -5 -5 -5 -5 -4 -4 -4 -4 -4 -4 -4 -3 -3 -3 -2 -2 -2 ------- Run | Yrd Mat Min Mat Sto Rec Scr Fac Was Fac Low Low Dat Pro Fac Was Fac Upp Upp War Pro Fac Was Fac Upp Upp Zhi Pro Res Qua Res Tes Frg Traps Triggered 44 | . 4 . 2 . . . 13 . 1 . . . . 4 . 1 . 1 1 . 2 . 1 . . . . 5 4 2 1 2 Indirectly 2 | . . . . . . . . . . . . . . 1 . . . . . . 1 . . . . . . . . . . . Trap Hack Attempts . | . . . . . . . . . . . . . . . . . . . . . . . . . . . . . . . . . Triggered . | . . . . . . . . . . . . . . . . . . . . . . . . . . . . . . . . . Disarmed 6 | . . . . . . . . . . . . . . . . . . . . . . . . . . . . . . . . 6 Reprogrammed . | . . . . . . . . . . . . . . . . . . . . . . . . . . . . . . . . . Reused . | . . . . . . . . . . . . . . . . . . . . . . . . . . . . . . . . . Traps Extracted . | . . . . . . . . . . . . . . . . . . . . . . . . . . . . . . . . . Installed . | . . . . . . . . . . . . . . . . . . . . . . . . . . . . . . . . . Triggered . | . . . . . . . . . . . . . . . . . . . . . . . . . . . . . . . . . Machines | -11 -10 -10 -9 -9 -9 -9 -6 -6 -6 -6 -6 -6 -5 -5 -5 -5 -5 -5 -5 -4 -4 -4 -4 -4 -4 -4 -3 -3 -3 -2 -2 -2 ---------- Run | Yrd Mat Min Mat Sto Rec Scr Fac Was Fac Low Low Dat Pro Fac Was Fac Upp Upp War Pro Fac Was Fac Upp Upp Zhi Pro Res Qua Res Tes Frg Machines Disabled 198 | . . . 2 2 1 . 6 . 16 . . . 1 25 . 25 . . . 3 26 . 14 . . . . 7 9 4 10 47 Max in Single Turn 13 | . . . 1 1 1 . 2 . 5 . . . . 4 . 13 . . . 2 12 . 4 . . . . 1 1 1 1 7 Garrison Access 12 | . . . . . . . 2 . 1 . . . . 2 . 1 . . . . 1 . . . . . . 2 . 1 1 1 Machines Repaired . | . . . . . . . . . . . . . . . . . . . . . . . . . . . . . . . . . Machines Dismantled . | . . . . . . . . . . . . . . . . . . . . . . . . . . . . . . . . . Machines Sabotaged . | . . . . . . . . . . . . . . . . . . . . . . . . . . . . . . . . . Overloaded Fab Kills 4 | . . . . . . . . . . . . . . . . . . . . . . . . . . . . . . . 4 . Hacking | -11 -10 -10 -9 -9 -9 -9 -6 -6 -6 -6 -6 -6 -5 -5 -5 -5 -5 -5 -5 -4 -4 -4 -4 -4 -4 -4 -3 -3 -3 -2 -2 -2 --------- Run | Yrd Mat Min Mat Sto Rec Scr Fac Was Fac Low Low Dat Pro Fac Was Fac Upp Upp War Pro Fac Was Fac Upp Upp Zhi Pro Res Qua Res Tes Frg Machines Accessed 276 | . 9 1 15 14 9 3 39 . 11 2 . 4 . 23 . 8 . . 1 1 27 . 20 . . 3 . 28 13 6 15 24 Terminals 129 | . 7 . 9 9 6 . 14 . 5 1 . . . 8 . 4 . . . 1 11 . 7 . . . . 14 10 1 9 13 Fabricators 25 | . . . . . . . 6 . 1 . . . . 2 . 1 . . . . 2 . 2 . . . . 4 . 1 2 4 Repair Stations 31 | . . . 2 2 . . 6 . . . . . . 3 . 1 . . . . 4 . 4 . . . . 1 2 2 2 2 Recycling Units 48 | . 2 . 2 2 3 . 7 . 4 . . . . 6 . . . . . . 7 . 7 . . . . 4 . 1 . 3 Scanalyzers 18 | . . . 2 . . . 4 . . . . . . 2 . 1 . . . . 2 . . . . . . 3 1 . 1 2 Garrison Access 12 | . . . . 1 . . 2 . 1 . . . . 2 . 1 . . . . 1 . . . . . . 2 . 1 1 . Total Hacks 983 | . 28 1 53 31 32 26 129 . 30 2 . 33 . 87 . 28 . . 1 8 92 . 57 . . 13 . 106 47 19 77 83 Successful 594 | . 15 1 34 16 20 26 94 . 17 2 . 33 . 55 . 17 . . 1 8 53 . 26 . . 13 . 52 21 15 40 35 Failed 386 | . 12 . 18 15 12 . 35 . 13 . . . . 32 . 11 . . . . 38 . 31 . . . . 54 26 4 37 48 Catastrophic 49 | . 2 . 3 1 1 . 4 . 1 . . . . 4 . . . . . . 4 . 1 . . . . 11 7 . 8 2 Database Lockouts 3 | . 1 . 1 . . . . . . . . . . . . . . . . . 1 . . . . . . . . . . . Manual 531 | . 27 . 34 24 29 . 56 . 24 . . . 1 60 . 6 . . 1 . 61 . 50 . . . . 60 23 8 37 30 Terminals 500 | . 25 . 35 21 25 . 37 . 18 1 . . . 44 . 15 . . . 8 46 . 28 . . . . 52 34 5 54 52 Fabricators 93 | . . . . . . . 19 . 4 . . . . 10 . 3 . . . . 7 . 5 . . . . 15 . 6 3 21 Repair Stations 112 | . . . 6 4 . . 25 . . . . . . 10 . 5 . . . . 15 . 12 . . . . 4 12 4 11 4 Recycling Units 85 | . 3 . 2 2 7 . 14 . 7 . . . . 12 . . . . . . 16 . 12 . . . . 5 . 1 . 4 Scanalyzers 84 | . . . 10 . . . 30 . . . . . . 9 . 3 . . . . 6 . . . . . . 18 1 . 5 2 Garrison Access 34 | . . . . 4 . . 4 . 1 . . . . 2 . 2 . . . . 2 . . . . . . 12 . 3 4 . Terminal Hacks 190 | . 3 1 7 5 7 26 1 . 3 2 . 33 . 10 . 6 . . 1 8 8 . 5 . . 13 . 12 9 4 16 10 Record 54 | . . . . . . 26 . . . 1 . 11 . . . . . . . 8 . . . . . 5 . . 1 2 . . Part Schematic 23 | . . . . . 3 . . . . . . 13 . . . . . . . . . . . . . 4 . 1 . . 2 . Robot Schematic 7 | . . . . . 1 . . . . . . 6 . . . . . . . . . . . . . . . . . . . . Robot Analysis 19 | . 2 . 4 1 . . . . . . . . . 2 . 1 . . . . 2 . . . . 4 . . . . 2 1 Prototype ID Bank 17 | . 1 . 1 1 2 . . . 1 . . 3 . 1 . 1 . . . . . . . . . . . 1 2 . 2 1 Open Door 6 | . . 1 . 3 . . . . . 1 . . . . . . . . 1 . . . . . . . . . . . . . Open DSF 1 | . . . . . . . . . . . . . . . . . . . . . . . . . . . . 1 . . . . Level Access Points 1 | . . . . . . . . . . . . . . . . . . . . . . . . . . . . . . . . 1 Branch Access Points 5 | . . . . . . . . . 1 . . . . . . 1 . . . . . . 1 . . . . 1 . 1 . . Emergency Access Points 2 | . . . . . . . . . . . . . . . . . . . . . . . . . . . . . . . . 2 Machine Index 1 | . . . . . . . . . . . . . . . . . . . . . . . . . . . . . . 1 . . Terminal Index 11 | . . . 1 . 1 . 1 . 1 . . . . 2 . . . . . . . . 1 . . . . 1 1 . 1 1 Alert Level 2 | . . . . . . . . . . . . . . . . . . . . . . . . . . . . 1 . . 1 . Unreport Threat 16 | . . . . . . . . . . . . . . 3 . 1 . . . . 3 . 2 . . . . . 4 . 3 . Locate Traps 1 | . . . . . . . . . . . . . . . . . . . . . . . . . . . . . . . 1 . Disarm Traps 1 | . . . . . . . . . . . . . . . . . . . . . . . . . . . . . . . . 1 Recall Investigation 8 | . . . . . . . . . . . . . . 1 . 1 . . . . 2 . 1 . . . . 3 . . . . Recall Extermination 6 | . . . . . . . . . . . . . . 1 . 1 . . . . 1 . . . . . . 3 . . . . Recall Reinforcements 1 | . . . 1 . . . . . . . . . . . . . . . . . . . . . . . . . . . . . Recall Assault 3 | . . . . . . . . . . . . . . . . . . . . . . . . . . . . . 1 . 1 1 Zone Layout 1 | . . . . . . . . . . . . . . . . . . . . . . . . . . . . . . . . 1 Proto ID Catalog 1 | . . . . . . . . . . . . . . . . . . . . . . . . . . . . . . . . 1 Protovariant Controls 3 | . . . . . . . . . . . . . . . . . . . . . . . . . . . . . . . 3 . Fabricator Hacks 29 | . . . . . . . 9 . 2 . . . . 3 . 2 . . . . 1 . . . . . . 3 . 2 . 7 Network Status 3 | . . . . . . . . . . . . . . 1 . . . . . . . . . . . . . 1 . 1 . . Load Schematic 14 | . . . . . . . 5 . 1 . . . . 1 . 1 . . . . 1 . . . . . . 1 . . . 4 Build 12 | . . . . . . . 4 . 1 . . . . 1 . 1 . . . . . . . . . . . 1 . 1 . 3 Repair Station Hacks 52 | . . . 4 . . . 14 . . . . . . 4 . 3 . . . . 10 . 2 . . . . 1 3 2 6 3 Scan Component 29 | . . . 2 . . . 7 . . . . . . 2 . 2 . . . . 6 . 1 . . . . 1 2 1 3 2 Repair 23 | . . . 2 . . . 7 . . . . . . 2 . 1 . . . . 4 . 1 . . . . . 1 1 3 1 Recycling Unit Hacks 3 | . . . . . . . 1 . . . . . . 1 . . . . . . 1 . . . . . . . . . . . Retrieve Components 3 | . . . . . . . 1 . . . . . . 1 . . . . . . 1 . . . . . . . . . . . Scanalyzer 63 | . . . 7 . . . 30 . . . . . . 7 . 2 . . . . 3 . . . . . . 10 . . 4 . Insert Component 32 | . . . 4 . . . 13 . . . . . . 4 . 1 . . . . 2 . . . . . . 6 . . 2 . Analyze 31 | . . . 3 . . . 17 . . . . . . 3 . 1 . . . . 1 . . . . . . 4 . . 2 . Garrison Access Hacks 10 | . . . . . . . 2 . 1 . . . . 2 . 1 . . . . 1 . . . . . . 1 . 1 1 . Seal Access 10 | . . . . . . . 2 . 1 . . . . 2 . 1 . . . . 1 . . . . . . 1 . 1 1 . Unauthorized Hacks 247 | . 12 . 16 11 13 . 37 . 11 . . . . 28 . 3 . . . . 29 . 19 . . . . 25 9 6 13 15 Terminals 132 | . 9 . 13 5 9 . 15 . 5 . . . . 15 . 2 . . . . 19 . 5 . . . . 9 6 1 8 11 Track 1 | . . . . . . . . . . . . . . . . . . . . . 1 . . . . . . . . . . . Assimilate 6 | . . . . . . . . . 1 . . . . . . . . . . . 1 . 1 . . . . . 2 . . 1 Botnet 67 | . 3 . 5 2 3 . 5 . 2 . . . . 7 . 2 . . . . 9 . 3 . . . . 8 4 1 6 7 Disrupt 4 | . . . . . . . . . . . . . . . . . . . . . 1 . . . . . . . . . 1 2 Operators 9 | . . . 1 . . . . . 1 . . . . 2 . . . . . . 1 . 1 . . . . 1 . . 1 1 Skim 45 | . 6 . 7 3 6 . 10 . 1 . . . . 6 . . . . . . 6 . . . . . . . . . . . Fabricators 25 | . . . . . . . 8 . . . . . . 3 . 1 . . . . . . 2 . . . . 6 . 3 2 . Report 4 | . . . . . . . 1 . . . . . . 1 . . . . . . . . . . . . . 1 . 1 . . Prioritize 4 | . . . . . . . 2 . . . . . . . . 1 . . . . . . . . . . . 1 . . . . Liberate 10 | . . . . . . . 4 . . . . . . . . . . . . . . . 1 . . . . 3 . 1 1 . Haulers 5 | . . . . . . . 1 . . . . . . 1 . . . . . . . . 1 . . . . 1 . 1 . . Overload 1 | . . . . . . . . . . . . . . . . . . . . . . . . . . . . . . . 1 . Download 1 | . . . . . . . . . . . . . . 1 . . . . . . . . . . . . . . . . . . Repair Stations 16 | . . . . 2 . . 3 . . . . . . 1 . . . . . . 1 . 3 . . . . 1 2 1 2 . Mechanics 1 | . . . . . . . 1 . . . . . . . . . . . . . . . . . . . . . . . . . Patch 15 | . . . . 2 . . 2 . . . . . . 1 . . . . . . 1 . 3 . . . . 1 2 1 2 . Recycling Units 63 | . 3 . 2 2 4 . 11 . 6 . . . . 9 . . . . . . 9 . 9 . . . . 4 . 1 . 3 Reject 4 | . . . . . 1 . 1 . . . . . . . . . . . . . 1 . 1 . . . . . . . . . Recyclers 8 | . 1 . . . 1 . 1 . 1 . . . . 2 . . . . . . 1 . 1 . . . . . . . . . Mask 7 | . . . . . 2 . 2 . 1 . . . . 1 . . . . . . 1 . . . . . . . . . . . Tunnel 6 | . 2 . 2 2 . . . . . . . . . . . . . . . . . . . . . . . . . . . . Fedlink 33 | . . . . . . . 7 . 4 . . . . 6 . . . . . . 6 . 7 . . . . 2 . . . 1 Scrapoids 4 | . . . . . . . . . . . . . . . . . . . . . . . . . . . . 1 . 1 . 2 Scraphulk 1 | . . . . . . . . . . . . . . . . . . . . . . . . . . . . 1 . . . . Scanalyzers 4 | . . . 1 . . . . . . . . . . . . . . . . . . . . . . . . . 1 . 1 1 Researchers 3 | . . . . . . . . . . . . . . . . . . . . . . . . . . . . . 1 . 1 1 Extract 1 | . . . 1 . . . . . . . . . . . . . . . . . . . . . . . . . . . . . Garrison Access 7 | . . . . 2 . . . . . . . . . . . . . . . . . . . . . . . 5 . . . . Broadcast 1 | . . . . . . . . . . . . . . . . . . . . . . . . . . . . 1 . . . . Redirect 1 | . . . . . . . . . . . . . . . . . . . . . . . . . . . . 1 . . . . Reprogram 2 | . . . . 1 . . . . . . . . . . . . . . . . . . . . . . . 1 . . . . Intercept 2 | . . . . 1 . . . . . . . . . . . . . . . . . . . . . . . 1 . . . . Watchers 1 | . . . . . . . . . . . . . . . . . . . . . . . . . . . . 1 . . . . Data Cores Recovered 3 | . . . . . . . 1 . 1 . . . . . . . . . . . . . . . . . . . . . . 1 Used . | . . . . . . . . . . . . . . . . . . . . . . . . . . . . . . . . . Hacking Detections 188 | . 7 . 10 10 7 . 30 . 5 . . . . 18 . 8 . . . . 18 . 11 . . . . 20 9 4 12 19 Full Trace Events 29 | . 1 . 1 2 1 . 6 . 1 . . . . 4 . 2 . . . . 3 . 1 . . . . 1 1 . 1 4 Feedback Events 2 | . . . . . . . . . . . . . . . . . . . . . . . 2 . . . . . . . . . Corruption 1 | . . . . . . . . . . . . . . . . . . . . . . . 1 . . . . . . . . . Hackware Fried 1 | . . . . . . . . . . . . . . . . . . . . . . . 1 . . . . . . . . . Feedback Blocked 1 | . . . . . . . . . . . . . . . . . . . . . 1 . . . . . . . . . . . Robot Schematics Acquired 11 | . . . . . 1 . . . . . . 6 . 1 . . . . . . . . . . . . . . . . 2 1 Robots Built 3 | . . . . . . . . . . . . . . . . . . . . . . . . . . . . . . 3 . . Authchips . | . . . . . . . . . . . . . . . . . . . . . . . . . . . . . . . . . Time 111 | . . . . . . . . . . . . . . . . . . . . . . . . . . . . . . 111 . . Total Robot Build Rating 27 | . . . . . . . . . . . . . . . . . . . . . . . . . . . . . . 27 . . Part Schematics Acquired 71 | . . . 15 . 3 . 12 . . . . 13 . 3 . 1 . . . . 1 . . . . 4 . 3 . . 6 10 Parts Built 13 | . . . . . . . 5 . 2 . . . . . . 2 . . . . . . . . . . . 1 . . . 3 Authchips . | . . . . . . . . . . . . . . . . . . . . . . . . . . . . . . . . . Time 761 | . . . . . . . 205 . 95 . . . . 95 . 69 . . . . . . . . . . . 111 . . . 186 Total Part Build Rating 83 | . . . . . . . 25 . 10 . . . . . . 18 . . . . . . . . . . . 9 . . . 21 Parts Repaired 23 | . . . 2 . . . 7 . . . . . . 2 . 1 . . . . 4 . 1 . . . . . 1 1 3 1 Time 979 | . . . 64 . . . 333 . . . . . . 75 . 35 . . . . 266 . 51 . . . . . 31 24 66 34 Parts Recycled . | . . . . . . . . . . . . . . . . . . . . . . . . . . . . . . . . . Recycled Matter . | . . . . . . . . . . . . . . . . . . . . . . . . . . . . . . . . . Retrieved Matter . | . . . . . . . . . . . . . . . . . . . . . . . . . . . . . . . . . Retrieved Components 6 | . . . . . . . 1 . . . . . . 2 . . . . . . 3 . . . . . . . . . . . Parts Scanalyzed 28 | . . . 3 . . . 12 . . . . . . 4 . 1 . . . . 2 . . . . . . 4 . . 2 . Part Schematics Acquired 24 | . . . 3 . . . 12 . . . . . . 3 . 1 . . . . 1 . . . . . . 2 . . 2 . Parts Damaged 6 | . . . 1 . . . 2 . . . . . . 1 . . . . . . . . . . . . . 2 . . . . Bothacking | -11 -10 -10 -9 -9 -9 -9 -6 -6 -6 -6 -6 -6 -5 -5 -5 -5 -5 -5 -5 -4 -4 -4 -4 -4 -4 -4 -3 -3 -3 -2 -2 -2 ------------ Run | Yrd Mat Min Mat Sto Rec Scr Fac Was Fac Low Low Dat Pro Fac Was Fac Upp Upp War Pro Fac Was Fac Upp Upp Zhi Pro Res Qua Res Tes Frg Used RIF Installer . | . . . . . . . . . . . . . . . . . . . . . . . . . . . . . . . . . Robots Hacked 1 | . . . . . . . 1 . . . . . . . . . . . . . . . . . . . . . . . . . Non-combat 1 | . . . . . . . 1 . . . . . . . . . . . . . . . . . . . . . . . . . Combat . | . . . . . . . . . . . . . . . . . . . . . . . . . . . . . . . . . Robot Hacks Applied 1 | . . . . . . . 1 . . . . . . . . . . . . . . . . . . . . . . . . . find_chute 1 | . . . . . . . 1 . . . . . . . . . . . . . . . . . . . . . . . . . Relay Couplers Released 5 | . . . . . . . . . . . . . . . . . . . . . 3 . . . . . . . . . . 2 Machine Destruction 2 | . . . . . . . . . . . . . . . . . . . . . . . . . . . . . . . . 2 Programmers 3 | . . . . . . . . . . . . . . . . . . . . . 3 . . . . . . . . . . . Fabnet Peak Effective % . | . . . . . . . . . . . . . . . . . . . . . . . . . . . . . . . . . Robots Rewired 8 | . . . . . . . 1 . . . . . 2 1 . . . 2 . . . . . . . . . . . . 2 . Allies Hacked 3 | . . . . . . . 2 . . . . . . . . . . . . . . . 1 . . . . . . . . . Hacks Repelled 2 | . . . . . . . . . . . . . . 1 . 1 . . . . . . . . . . . . . . . . Allies | -11 -10 -10 -9 -9 -9 -9 -6 -6 -6 -6 -6 -6 -5 -5 -5 -5 -5 -5 -5 -4 -4 -4 -4 -4 -4 -4 -3 -3 -3 -2 -2 -2 -------- Run | Yrd Mat Min Mat Sto Rec Scr Fac Was Fac Low Low Dat Pro Fac Was Fac Upp Upp War Pro Fac Was Fac Upp Upp Zhi Pro Res Qua Res Tes Frg Total Allies 110 | . . . . 1 . 5 1 19 . . . . 3 1 20 . . 2 . . 1 20 4 . . . . 11 2 8 2 10 Largest Group 20 | . . . . 1 . 5 6 19 17 . . . 3 3 20 20 . 2 . . 1 19 19 . . . . 8 2 5 2 10 Highest-Rated Group 760 | . . . . 15 . 235 247 702 652 . . . 150 150 760 760 . 60 . . 10 684 684 . . . . 571 52 323 180 643 Highest-Rated Ally 139 | . . . . 15 . 47 47 50 50 . . . 96 91 50 50 . 30 . . 10 50 54 . . . . 139 26 67 90 67 Total Orders 48 | . . . . . . . . . 8 . . . . . . . . . . . . . 3 . . . . . . 6 . 31 STAY 1 | . . . . . . . . . . . . . . . . . . . . . . . . . . . . . . . . 1 FOLLOW 9 | . . . . . . . . . 2 . . . . . . . . . . . . . . . . . . . . . . 7 EXPLORE 12 | . . . . . . . . . 3 . . . . . . . . . . . . . 2 . . . . . . 4 . 3 RETURN 26 | . . . . . . . . . 3 . . . . . . . . . . . . . 1 . . . . . . 2 . 20 Ally Attacks 1439 | . . . . 6 . . 60 66 210 . . . 12 31 . 231 . 1 . . . 2 111 . . . . 120 . 65 19 505 Total Damage 34969 | . . . . 118 . . 964 1885 5505 . . . 468 785 . 5008 . 42 . . . 47 2765 . . . . 4759 . 1532 771 10320 Kills 191 | . . . . 1 . . 9 5 39 . . . 5 5 . 38 . . . . . . 13 . . . . 26 . 8 2 40 Allies Corrupted 7 | . . . . . . . . . 3 . . . . 2 . 2 . . . . . . . . . . . . . . . . Allies Melted 7 | . . . . . . . . . . . . . . . . 1 . . 1 . . . 1 . . . . . . . . 4 Intel | -11 -10 -10 -9 -9 -9 -9 -6 -6 -6 -6 -6 -6 -5 -5 -5 -5 -5 -5 -5 -4 -4 -4 -4 -4 -4 -4 -3 -3 -3 -2 -2 -2 ------- Run | Yrd Mat Min Mat Sto Rec Scr Fac Was Fac Low Low Dat Pro Fac Was Fac Upp Upp War Pro Fac Was Fac Upp Upp Zhi Pro Res Qua Res Tes Frg Active Infowar (turns) 7488 | 54 409 . 1406 . . . 92 . 11 443 483 57 416 2338 . . . . . . 2 . . . . . . 2 . 630 321 824 Optics 3183 | . . . 1406 . . . . . . . . . . . . . . . . . . . . . . . . 2 . 630 321 824 IFF 1412 | . . . . . . . . . 11 443 483 57 416 2 . . . . . . . . . . . . . . . . . . Terrain 556 | 54 409 . . . . . 92 . . . . . . . . . . . . . 1 . . . . . . . . . . . Decoding 2338 | . . . . . . . . . . 1 . . . 2337 . . . . . . . . . . . . . . . . . . Machine Analysis 170 | . . . . . . . . . . . . . . . . . . . . . . . . . . . . . . . 170 . Jamming 1 | . . . . . . . . . . . . . . . . . . . . . 1 . . . . . . . . . . . Robot Analysis Total 19 | . 2 . 4 1 . . . . . . . . . 2 . 1 . . . . 2 . . . . 4 . . . . 2 1 Derelict Logs Recovered 7 | . . 1 . . . . . . . . 3 . 1 . . . . 1 . 1 . . . . . . . . . . . . Drone Launches 58 | . . . . . . . . . 19 . . . . . . . . . . . . . 5 . . . . . . 5 . 29 Drone Recoveries 33 | . . . . . . . . . 3 . . . . . . . . . . . . . 1 . . . . . . 4 . 25 Decoded 0b10 Intel 96 | . . . . . . . . . . . . . . 96 . . . . . . . . . . . . . . . . . . Traps 28 | . . . . . . . . . . . . . . 28 . . . . . . . . . . . . . . . . . . Emergency Access 13 | . . . . . . . . . . . . . . 13 . . . . . . . . . . . . . . . . . . Items 44 | . . . . . . . . . . . . . . 44 . . . . . . . . . . . . . . . . . . Machines 4 | . . . . . . . . . . . . . . 4 . . . . . . . . . . . . . . . . . . Patrols 2 | . . . . . . . . . . . . . . 2 . . . . . . . . . . . . . . . . . . Guards 4 | . . . . . . . . . . . . . . 4 . . . . . . . . . . . . . . . . . . Exits 1 | . . . . . . . . . . . . . . 1 . . . . . . . . . . . . . . . . . . Exploration | -11 -10 -10 -9 -9 -9 -9 -6 -6 -6 -6 -6 -6 -5 -5 -5 -5 -5 -5 -5 -4 -4 -4 -4 -4 -4 -4 -3 -3 -3 -2 -2 -2 ------------- Run | Yrd Mat Min Mat Sto Rec Scr Fac Was Fac Low Low Dat Pro Fac Was Fac Upp Upp War Pro Fac Was Fac Upp Upp Zhi Pro Res Qua Res Tes Frg Turns Passed 35771 | 150 1553 403 3597 1939 1044 2240 3683 285 1026 443 484 57 416 2360 231 1116 247 387 927 931 1678 330 1303 218 142 205 145 1951 1000 806 1174 3300 Spaces Moved 40070 | 72 811 248 1900 820 609 1383 4393 336 1352 671 695 80 487 2906 276 1698 406 665 1275 868 2728 378 2072 385 298 370 312 3550 1553 859 1580 4034 Core 7 | 7 . . . . . . . . . . . . . . . . . . . . . . . . . . . . . . . . Treads 6318 | 65 811 248 1900 820 609 1383 482 . . . . . . . . . . . . . . . . . . . . . . . . . Legs . | . . . . . . . . . . . . . . . . . . . . . . . . . . . . . . . . . Wheels . | . . . . . . . . . . . . . . . . . . . . . . . . . . . . . . . . . Hover 33745 | . . . . . . . 3911 336 1352 671 695 80 487 2906 276 1698 406 665 1275 868 2728 378 2072 385 298 370 312 3550 1553 859 1580 4034 Flight . | . . . . . . . . . . . . . . . . . . . . . . . . . . . . . . . . . Fastest Speed 17 | 50 160 160 160 160 160 160 40 48 48 60 60 62 62 32 43 36 41 41 34 42 17 35 26 38 40 35 17 21 22 43 43 40 Average Speed 63 | 149 160 160 160 160 160 160 57 48 51 60 61 62 62 51 43 43 41 41 42 100 39 35 37 39 40 37 32 33 39 60 43 42 Slowest Speed 240 | 160 240 160 240 160 160 160 240 53 119 129 68 62 62 132 45 104 42 41 116 120 124 107 124 40 40 44 35 99 118 157 48 126 Overloaded Moves 316 | . . . . . . . . . . . . . . 30 . 26 . . . . 73 . 57 . . . 29 58 43 . . . Propulsion Burnouts . | . . . . . . . . . . . . . . . . . . . . . . . . . . . . . . . . . Robots Hopped . | . . . . . . . . . . . . . . . . . . . . . . . . . . . . . . . . . Potential Cave-ins 20 | . . . . . . . . . . . . . . . . . . . . . . . . . . . . . . . . 20 Cave-ins Triggered 1 | . . . . . . . . . . . . . . . . . . . . . . . . . . . . . . . . 1 Teleports 5 | . . . . . . . . . . . . . . . . . . . . . . . . . . . . . 4 . 1 . Exploration Rate (%) 65 | 4 90 54 93 80 76 80 71 96 41 71 69 68 61 54 95 41 58 61 78 56 63 94 45 63 56 60 50 64 90 19 92 69 Regions Visited 32 Branch Regions 19 Pre-discovered Areas 25 | . 4 . 6 2 1 . 5 . . . . 1 1 . . . . . . 2 . . . . . 3 . . . . . . Known Exits Taken 13 | . . . . 1 1 . . . 1 . . . 1 . . 1 1 1 . 1 . . 1 1 . . 1 1 . 1 . . Unknown Exits Taken 13 | 1 1 1 1 . . 1 . . . 1 1 1 . . . . . . 1 . . . . . 1 1 . . 1 . 1 . Scrap Searched 24 | . . 3 . . . 5 . . . 2 8 . 1 . . . . 2 . 1 . . . . 2 . . . . . . . Spaces Dug 529 | . 5 . . 46 . . 60 . . . 36 . 1 85 . 4 . . . 39 12 . 24 . . . 51 59 37 11 12 47 Terrain Destroyed 3047 | . 53 . 103 226 . . 369 33 129 14 36 . 59 253 4 98 15 5 62 128 189 42 245 18 32 . 114 218 136 77 88 301 Melee . | . . . . . . . . . . . . . . . . . . . . . . . . . . . . . . . . . Projectile 785 | . . . . . . . 42 . 13 14 1 . 4 58 4 51 15 5 16 5 67 20 88 7 . . 8 47 29 28 40 223 AOE 2239 | . 53 . 103 226 . . 327 33 116 . 35 . 54 191 . 47 . . 46 123 122 22 157 11 32 . 106 169 106 48 41 71 Terrain Rammed . | . . . . . . . . . . . . . . . . . . . . . . . . . . . . . . . . . Walls Destroyed . | . . . . . . . . . . . . . . . . . . . . . . . . . . . . . . . . . Machines Disabled . | . . . . . . . . . . . . . . . . . . . . . . . . . . . . . . . . . Actions | -11 -10 -10 -9 -9 -9 -9 -6 -6 -6 -6 -6 -6 -5 -5 -5 -5 -5 -5 -5 -4 -4 -4 -4 -4 -4 -4 -3 -3 -3 -2 -2 -2 --------- Run | Yrd Mat Min Mat Sto Rec Scr Fac Was Fac Low Low Dat Pro Fac Was Fac Upp Upp War Pro Fac Was Fac Upp Upp Zhi Pro Res Qua Res Tes Frg Total 46618 | 90 924 256 2139 1039 633 1414 5146 444 1538 695 744 87 575 3396 369 1938 468 767 1600 906 3106 530 2415 439 316 432 338 3978 1810 1072 1896 5118 Wait 2199 | . . . 38 8 1 6 319 86 41 4 19 . 18 137 50 79 43 63 189 6 132 105 123 29 4 3 . 102 35 60 121 378 Move 40040 | 71 810 247 1899 819 608 1382 4393 335 1351 670 694 79 486 2906 275 1697 405 664 1274 867 2728 377 2071 384 297 369 311 3549 1552 858 1579 4033 Hop . | . . . . . . . . . . . . . . . . . . . . . . . . . . . . . . . . . Pick Up 420 | . 14 4 16 9 2 16 44 3 5 6 5 . 1 44 3 17 4 5 21 4 16 6 24 5 . 11 3 26 24 21 24 37 Fast Attach 308 | 7 9 . 2 2 . 2 36 1 12 2 2 4 . 26 5 16 . 2 14 4 14 3 7 1 4 11 2 18 24 13 12 53 Attach 240 | . . . 4 2 . 1 20 1 15 . 5 . . 23 . 11 4 . 6 4 17 5 26 5 2 3 4 7 13 13 15 34 Detach 161 | . . . 2 . . 1 10 . 15 1 4 . . 10 2 5 . . 9 2 12 1 17 1 2 2 3 5 5 7 7 38 Swap 639 | . 17 . 27 20 1 . 41 6 23 4 7 . 6 49 17 35 4 6 18 1 55 5 34 5 . 3 1 60 47 21 29 97 Drop 551 | . 5 4 21 15 2 6 57 6 13 1 4 4 3 42 9 22 1 4 33 7 24 10 21 5 4 20 2 40 33 22 25 86 Fire 1869 | 12 69 1 130 162 19 . 167 6 62 7 4 . 12 159 5 56 7 4 36 11 108 18 89 4 3 10 12 171 53 47 79 346 Melee 2 | . . . . 2 . . . . . . . . . . . . . . . . . . . . . . . . . . . . Ram 7 | . . . . . . . . . 1 . . . . . . . . . . . . . 2 . . . . . 1 . 1 2 Kick . | . . . . . . . . . . . . . . . . . . . . . . . . . . . . . . . . . Crush . | . . . . . . . . . . . . . . . . . . . . . . . . . . . . . . . . . Escape Stasis 89 | . . . . . . . 55 . . . . . . . . . . . . . . . . . . . . . 23 10 . 1 Rewire 81 | . . . . . . . 4 . . . . . 49 . 3 . . 18 . . . . . . . . . . . . 4 3 Trap . | . . . . . . . . . . . . . . . . . . . . . . . . . . . . . . . . . Miscellaneous 12 | . . . . . . . . . . . . . . . . . . 1 . . . . 1 . . . . . . . . 10 Route ------- -11/Scrapyard -10/Materials (discovered 6 exits: *Mat x3 / *Min x2 / [*Sub]) -10/Mines (discovered 2 exits: *Mat x2) -9/Materials (discovered 7 exits: *Mat x3 / [*Min x2] / *Sto x2) -9/Storage (discovered 2 exits: *Mat / *Rec) -9/Recycling (discovered 2 exits: *Fac / *Scr) -9/Scraptown (discovered 2 exits: *Fac x2) -6/Factory (discovered 5 exits: *Fac x3 / *Low x2) -6/Waste -6/Factory (discovered 5 exits: *Fac x3 / *Low x2) -6/Lower Caves -6/Lower Caves (discovered 2 exits: *Fac / *Dat) -6/Data Miner -5/Proximity Caves -5/Factory (discovered 6 exits: *Fac x3 / *Upp x2 / *Ext) -5/Waste -5/Factory (discovered 5 exits: *Fac / *Upp x2 / Ext x2) -5/Upper Caves -5/Upper Caves (discovered 2 exits: Fac / *War) -5/Warlord -4/Proximity Caves -4/Factory (discovered 2 exits: Upp x2) -4/Waste -4/Factory (discovered 4 exits: *Res x2 / *Upp x2) -4/Upper Caves -4/Upper Caves (discovered 2 exits: Res / *Zhi) -4/Zhirov -3/Proximity Caves -3/Research (discovered 5 exits: *Res x2 / Arm / *Qua x2) -3/Quarantine -2/Research (discovered 2 exits: *Tes x2) -2/Testing (discovered 3 exits: *Acc / [*Sec] / *Frg) -2/Protoforge (discovered 1 exit: *Acc) History --------- Turn | Location | Event 13 | -11/Scrapyard | Discovered new exit (range 15) 151 | -11/Scrapyard | Entered Materials 254 | -10/Materials | Discovered new exit (range 7) 309 | -10/Materials | Build established: Mutant 504 | -10/Materials | Discovered new exit (range 15) 771 | -10/Materials | Discovered new exit (range 13) 828 | -10/Materials | Discovered new exit (range 7) 951 | -10/Materials | Discovered new exit (range 16) 1170 | -10/Materials | Discovered new exit (range 8) 1184 | -10/Materials | Central database locked down 1255 | -10/Materials | Learned location of Subcaves (-10) 1388 | -10/Materials | Learned location of Storage (-9) 1440 | -10/Materials | Learned Storage stockpile data 1480 | -10/Materials | Loaded intel: 8 terminal locations 1594 | -10/Materials | Learned Storage trap positions 1704 | -10/Materials | Entered Mines 1759 | -10/Mines | Learned 4 Materials zone layouts 1765 | -10/Mines | Assembled infested the area 1767 | -10/Mines | Found a damaged Exp. Sensor Array with a note attached 1770 | -10/Mines | Found Prototype Device 1847 | -10/Mines | Received a Rocket Launcher from a helpful Derelict 1897 | -10/Mines | Discovered new exit (range 7) 1965 | -10/Mines | Found the Drone Emporium 1981 | -10/Mines | Found Prototype Device 2046 | -10/Mines | Discovered new exit (range 10) 2107 | -10/Mines | Entered Materials 2107 | -9/Materials | Evolved 2 slots: Weapon x2 2108 | -9/Materials | Identified exit to Materials 2119 | -9/Materials | Identified Exp. Sensor Array 2123 | -9/Materials | Identified Bomb Drone Bay 2156 | -9/Materials | Discovered new exit (range 15) 2572 | -9/Materials | Repaired Hvy. Assault Rifle 2673 | -9/Materials | Build established: Skirmisher 2718 | -9/Materials | Discovered new exit (range 13) 3057 | -9/Materials | Discovered new exit (range 8) 3521 | -9/Materials | Discovered new exit (range 5) 3823 | -9/Materials | Repaired Hvy. Assault Rifle 3935 | -9/Materials | Discovered exit to Materials (range 11) 4075 | -9/Materials | Build established: Gunner 4077 | -9/Materials | Learned Storage emergency access door positions 4101 | -9/Materials | Learned location of Zion (-7) 4117 | -9/Materials | Learned location of 1 exit from Storage 4131 | -9/Materials | Learned Storage security intel 4214 | -9/Materials | Central database locked down 4507 | -9/Materials | First assault squad dispatched 5379 | -9/Materials | Sterilization system engaged 5379 | -9/Materials | Non-combat units ordered to evacuate 5422 | -9/Materials | Destroyed 13 combat bots 5479 | -9/Materials | Combat units ordered to evacuate 5679 | -9/Materials | Ambient heat levels rising (+10) 5704 | -9/Materials | Entered Storage 5705 | -9/Storage | Identified exit to Recycling 5706 | -9/Storage | Loaded intel: 23 trap records 5740 | -9/Storage | Garrison activated, responded to threat 5930 | -9/Storage | Garrison activated, responded to threat 6046 | -9/Storage | Garrison activated, responded to threat 6169 | -9/Storage | Garrison activated, responded to threat 6238 | -9/Storage | Used back door to open Recycling access 6454 | -9/Storage | Found Prototype Launcher 6454 | -9/Storage | Identified Scatter Rocket Array 6677 | -9/Storage | Core integrity fell below 50% 6904 | -9/Storage | First assault squad dispatched 6927 | -9/Storage | Discovered exit to Materials (range 15) 7643 | -9/Storage | Entered Recycling 8238 | -9/Recycling | Discovered new exit (range 16) 8294 | -9/Recycling | Identified exit to Factory 8294 | -9/Recycling | Identified exit to Scraptown 8347 | -9/Recycling | Learned Storage trap positions 8358 | -9/Recycling | Learned location of 1 exit from Recycling 8369 | -9/Recycling | Learned Storage emergency access door positions 8646 | -9/Recycling | Scanned before Scraplab entrance 8670 | -9/Recycling | Entered Scraplab 8687 | -9/Recycling | Entered Scraptown 8961 | -9/Scraptown | Heard Great Nut preacher, LISTEN AND RECITE! 9014 | -9/Scraptown | Discovered new exit (range 11) 9110 | -9/Scraptown | Visited Spacefarers 9159 | -9/Scraptown | Visited UFD Registry 9183 | -9/Scraptown | Visited SPCMW 9214 | -9/Scraptown | Visited Fellowship of the Rings 9223 | -9/Scraptown | Visited Cave Peace 9303 | -9/Scraptown | Registered with UFD as "Novaripper" 9715 | -9/Scraptown | Visited Junk Repository 9803 | -9/Scraptown | Visited Chapter 10 9832 | -9/Scraptown | Visited DA-N13 Charitable Foundation 9849 | -9/Scraptown | Found DCF Scrap (29 items) 9886 | -9/Scraptown | Visited Scrap Suit Storage 9913 | -9/Scraptown | Visited Scrapoid Pod Storage 9925 | -9/Scraptown | Found Scrapoid Pod 10087 | -9/Scraptown | Scrapoid Pod released 09S05-D (x5) 10172 | -9/Scraptown | Visited Derelict Rescue Squad 10182 | -9/Scraptown | Found DRS Beacon 10324 | -9/Scraptown | Received an X-ray algorithm 10343 | -9/Scraptown | Visited Observation Area 10367 | -9/Scraptown | Visited Junk Cannon Lab 10830 | -9/Scraptown | Met Optimus 10830 | -9/Scraptown | Accepted into 0bPrime 10919 | -9/Scraptown | Discovered new exit (range 5) 10927 | -9/Scraptown | Entered Factory 10927 | -6/Factory | Accompanied by 5 allies 10927 | -6/Factory | Evolved 6 slots: Propulsion x4, Utility x2 11298 | -6/Factory | Build established: Hacker-Gunner 11940 | -6/Factory | Repaired Gravmag System? 11948 | -6/Factory | Loaded intel: 8 recycling unit locations 12145 | -6/Factory | Lost 5 allies 12290 | -6/Factory | Learned location of Protoforge (-2) 12573 | -6/Factory | Learned Extension trap positions 12603 | -6/Factory | Discovered new exit (range 4) 12655 | -6/Factory | Learned location of 2 exits from Upper Caves 12692 | -6/Factory | Repaired Gravmag System 12726 | -6/Factory | Learned location of Warlord (-5) 12768 | -6/Factory | Fabricated Imp. Gravmag System (x2) 12774 | -6/Factory | Repaired Imp. Heavy Machine Gun? 12786 | -6/Factory | Learned Hub_04(d) machine intel 12798 | -6/Factory | Repaired Scatter Rocket Array 12824 | -6/Factory | Repaired Coil Gun 12838 | -6/Factory | Learned Hub_04(d) emergency access door positions 12902 | -6/Factory | Loaded intel: 80 trap records 12958 | -6/Factory | Discovered new exit (range 12) 12976 | -6/Factory | Learned location of 1 exit from Proximity Caves 13010 | -6/Factory | Discovered new exit (range 16) 13072 | -6/Factory | Fabricated Imp. Gravmag System (x2) 13097 | -6/Factory | Fabricated Gravmag Array (x1) 13193 | -6/Factory | Destroyed 8 combat bots 13680 | -6/Factory | Repaired Coil Gun 13727 | -6/Factory | First assault squad dispatched 13732 | -6/Factory | Repaired Coil Gun 14142 | -6/Factory | Spotted B-75 Beast 14288 | -6/Factory | Learned Hub_04(d) trap positions 14314 | -6/Factory | Discovered new exit (range 13) 14321 | -6/Factory | Learned location of 2 exits from Proximity Caves 14352 | -6/Factory | Identified exit to Factory 14354 | -6/Factory | Learned Hub_04(d) stockpile data 14374 | -6/Factory | Learned location of 1 exit from Upper Caves 14610 | -6/Factory | Sucked down chute 14610 | -6/Factory | Entered Waste 14619 | -6/Waste | Warlord forces began an assault 14674 | -6/Waste | Spotted C-40 Crusher 14678 | -6/Waste | Spotted C-40 Crusher 14683 | -6/Waste | Spotted C-40 Crusher 14683 | -6/Waste | Destroyed C-40 Crusher 14685 | -6/Waste | Allies destroyed C-40 Crusher 14687 | -6/Waste | Allies destroyed C-40 Crusher 14703 | -6/Waste | Spotted C-40 Crusher 14704 | -6/Waste | Allies destroyed C-40 Crusher 14729 | -6/Waste | Spotted C-40 Crusher 14734 | -6/Waste | Allies destroyed C-40 Crusher 14751 | -6/Waste | Spotted C-40 Crusher 14756 | -6/Waste | Allies destroyed C-40 Crusher 14852 | -6/Waste | Discovered new exit (range 13) 14895 | -6/Waste | Entered Factory 14895 | -6/Factory | Accompanied by 17 allies 14896 | -6/Factory | Identified exit to Lower Caves 14959 | -6/Factory | Loaded intel: 8 recycling unit locations 15059 | -6/Factory | Destroyed 7 combat bots 15076 | -6/Factory | Discovered exit to Factory (range 13) 15245 | -6/Factory | First assault squad dispatched 15423 | -6/Factory | Discovered exit to Factory (range 10) 15516 | -6/Factory | Discovered exit to Factory (range 15) 15519 | -6/Factory | High security lockdown imminent 15599 | -6/Factory | High security lockdown engaged 15625 | -6/Factory | Fabricated Imp. Gravmag System? 15628 | -6/Factory | Cargo convoy interrupted 15645 | -6/Factory | Core integrity fell below 50% 15653 | -6/Factory | Found Prototype Processor 15653 | -6/Factory | Identified Exp. Melee Analysis Suite 15667 | -6/Factory | Lost 3 allies 15669 | -6/Factory | Destroyed 10 combat bots 15726 | -6/Factory | Lost 9 allies 15735 | -6/Factory | Garrison activated, responded to threat 15801 | -6/Factory | Lost 8 allies 15921 | -6/Factory | Entered Lower Caves 15925 | -6/Lower Caves | Lost 3 parts (2n1w) 16054 | -6/Lower Caves | Entered a destroyed Warlord outpost 16269 | -6/Lower Caves | Discovered new exit (range 13) 16364 | -6/Lower Caves | Entered another Lower Caves area 16378 | -6/Lower Caves | Build established: Gunner 16380 | -6/Lower Caves | Ambushed by wild Derelicts 16446 | -6/Lower Caves | Spotted B-75 Beast 16522 | -6/Lower Caves | Found Alien Artifact 16522 | -6/Lower Caves | Identified Core Expander 16522 | -6/Lower Caves | Installed Core Expander, added new Utility slot 16551 | -6/Lower Caves | Discovered exit to Factory (range 10) 16740 | -6/Lower Caves | Learned 4 Factory zone layouts 16751 | -6/Lower Caves | Build established: Derelict-Gunner 16795 | -6/Lower Caves | Learned location of 1 exit from Factory 16815 | -6/Lower Caves | Discovered new exit (range 10) 16848 | -6/Lower Caves | Entered Data Miner 16848 | -6/Data Miner | Discovered new exit (range 6) 16862 | -6/Data Miner | Met Data Miner 16874 | -6/Data Miner | Learned location of Section 7 (-2) 16874 | -6/Data Miner | Acquired the access code to Warlord's prototype stash 16884 | -6/Data Miner | Received God Mode back door access code from Data Miner 16905 | -6/Data Miner | Entered Proximity Caves 16958 | -5/Proximity Caves | Spotted B-75 Beast 17014 | -5/Proximity Caves | Escorted by Enhanced Grunt 17130 | -5/Proximity Caves | Learned location of Armory (-3) 17208 | -5/Proximity Caves | Attracted the attention of an 0b10 checkpoint 17269 | -5/Proximity Caves | Acquired the password to a Derelict Tinkerer's latest research 17274 | -5/Proximity Caves | Found Prototype Special Weapon 17321 | -5/Proximity Caves | Entered Factory 17321 | -5/Factory | Accompanied by 3 allies 17321 | -5/Factory | Evolved 2 slots: Propulsion x1, Utility x1 17322 | -5/Factory | Identified exit to Upper Caves 17323 | -5/Factory | Identified exit to Factory 17360 | -5/Factory | Loaded intel: 8 recycling unit locations 17379 | -5/Factory | Incoming investigation squad redirected 17592 | -5/Factory | Incoming investigation squad redirected 17667 | -5/Factory | Incoming investigation squad redirected 17704 | -5/Factory | Repaired Cmb. Airjet? 17899 | -5/Factory | Garrison activated, responded to threat 17981 | -5/Factory | Discovered new exit (range 13) 18221 | -5/Factory | First assault squad dispatched 18246 | -5/Factory | Incoming assault squad redirected 18281 | -5/Factory | Cargo convoy interrupted 18299 | -5/Factory | Identified Molecular Deconstructor 18377 | -5/Factory | Discovered exit to Factory (range 12) 18379 | -5/Factory | Build established: Hacker-Gunner 18845 | -5/Factory | Incoming investigation squad redirected 18893 | -5/Factory | Garrison activated, responded to threat 19002 | -5/Factory | Repaired Cmb. Airjet 19101 | -5/Factory | Incoming investigation squad redirected 19148 | -5/Factory | Incoming assault squad redirected 19149 | -5/Factory | Lost 3 parts (2n1w) 19154 | -5/Factory | Destroyed 7 combat bots 19451 | -5/Factory | Incoming assault squad redirected 19513 | -5/Factory | Build established: Scavenger-Gunner 19645 | -5/Factory | Incoming assault squad redirected 19681 | -5/Factory | Manually triggered Chute Trap 19681 | -5/Factory | Sucked down chute 19681 | -5/Factory | Entered Waste 19682 | -5/Waste | Joined by Warlord forces that had cleared the area 19824 | -5/Waste | Discovered new exit (range 12) 19912 | -5/Waste | Entered Factory 19912 | -5/Factory | Accompanied by 20 allies 20049 | -5/Factory | Repaired Broken Cmb. Airjet 20137 | -5/Factory | Build established: Hacker-Gunner 20257 | -5/Factory | Destroyed 7 combat bots 20310 | -5/Factory | Identified exit to Extension 20411 | -5/Factory | Lost 4 allies 20415 | -5/Factory | High security lockdown imminent 20452 | -5/Factory | Lost 4 allies 20495 | -5/Factory | High security lockdown engaged 20515 | -5/Factory | Fabricated Cmb. Linear Gravjet (x2) 20534 | -5/Factory | Lost 4 allies 20594 | -5/Factory | Discovered exit to Factory (range 12) 20647 | -5/Factory | Core integrity fell below 50% 20667 | -5/Factory | Destroyed 13 combat bots 20674 | -5/Factory | System corruption reached 10% 20941 | -5/Factory | Lost 10 parts (1p4n1u4w) 21028 | -5/Factory | Entered Upper Caves 21029 | -5/Upper Caves | Identified exit to Upper Caves 21231 | -5/Upper Caves | Spotted B-75 Beast 21275 | -5/Upper Caves | Entered another Upper Caves area 21276 | -5/Upper Caves | Identified exit to Warlord 21278 | -5/Upper Caves | Activated DRS Beacon 21298 | -5/Upper Caves | Learned Factory terminal intel 21408 | -5/Upper Caves | Build established: Gunner 21469 | -5/Upper Caves | Spotted B-75 Beast 21662 | -5/Upper Caves | Entered Warlord 21676 | -5/Warlord | System corruption cleaned by Quarantine Array 21711 | -5/Warlord | Rebuked by Warlord 21736 | -5/Warlord | Warlord's base attacked by MAIN.C 21824 | -5/Warlord | Opened Warlord's prototype stash 21833 | -5/Warlord | Found Prototype Processor 21833 | -5/Warlord | Identified Exp. Targeting Computer 21836 | -5/Warlord | Found Prototype Processor 21836 | -5/Warlord | Identified Exp. Armor Integrity Analyzer 21839 | -5/Warlord | Found Prototype Device 21839 | -5/Warlord | Identified Exp. Focal Shield 21843 | -5/Warlord | Found Prototype Reactor 21872 | -5/Warlord | Found Prototype Energy Gun 21872 | -5/Warlord | Identified Vortex Shotgun 21876 | -5/Warlord | Found Vortex Shotgun 21879 | -5/Warlord | Found Vortex Shotgun 21949 | -5/Warlord | Core integrity fell below 20% 21969 | -5/Warlord | Warlord forces counterattacked 22024 | -5/Warlord | Destroyed 11 combat bots 22037 | -5/Warlord | Spotted Striker 22084 | -5/Warlord | Discovered new exit (range 15) 22096 | -5/Warlord | Lost 9 allies 22137 | -5/Warlord | Spotted Striker 22143 | -5/Warlord | Destroyed Striker 22241 | -5/Warlord | Spotted Executioner 22243 | -5/Warlord | Destroyed Executioner 22271 | -5/Warlord | Destroyed 8 combat bots 22282 | -5/Warlord | Lost 7 allies 22346 | -5/Warlord | Found Vortex Shotgun 22379 | -5/Warlord | Spotted Striker 22411 | -5/Warlord | Warlord base infiltrated, sounded retreat 22536 | -5/Warlord | Spotted Executioner 22536 | -5/Warlord | Spotted Striker 22559 | -5/Warlord | Found Prototype Device 22559 | -5/Warlord | Identified Exp. Shock Absorption System 22566 | -5/Warlord | Found Prototype Launcher 22566 | -5/Warlord | Identified Chain Missile Launcher 22580 | -5/Warlord | Lost 4 allies 22589 | -5/Warlord | Entered Proximity Caves 22592 | -4/Proximity Caves | Spotter reported a threat 22834 | -4/Proximity Caves | Learned location of Testing (-2) 22839 | -4/Proximity Caves | Build established: Scavenger-Gunner 23028 | -4/Proximity Caves | Attracted the attention of an 0b10 base 23044 | -4/Proximity Caves | Learned location of 2 exits from Upper Caves 23044 | -4/Proximity Caves | Learned Factory trap positions 23044 | -4/Proximity Caves | Learned Factory stockpile data 23044 | -4/Proximity Caves | Learned Research garrison access intel 23056 | -4/Proximity Caves | Destroyed 7 combat bots 23520 | -4/Proximity Caves | Entered Factory 23520 | -4/Factory | Evolved 2 slots: Power x1, Propulsion x1 23521 | -4/Factory | Identified exit to Upper Caves 23522 | -4/Factory | Loaded intel: 111 trap records 23524 | -4/Factory | Loaded intel: 26 terminal locations 24229 | -4/Factory | Loaded intel: 8 recycling unit locations 24270 | -4/Factory | First assault squad dispatched 24404 | -4/Factory | Central database locked down 24438 | -4/Factory | Destroyed 7 combat bots 24541 | -4/Factory | Incoming investigation squad redirected 24620 | -4/Factory | Spotted B-86 Titan 24670 | -4/Factory | Spotted B-86 Titan 24697 | -4/Factory | Learned location of 1 exit from Proximity Caves 24761 | -4/Factory | Learned Research scanalyzer intel 24859 | -4/Factory | Learned Armory trap positions 24880 | -4/Factory | Repaired Enh. Gauss Cannon 24890 | -4/Factory | Learned 4 Quarantine zone layouts 24895 | -4/Factory | Repaired Hardcell Cannon? 24911 | -4/Factory | Learned 2 Proximity Caves zone layouts 24943 | -4/Factory | Learned Quarantine scanalyzer intel 24962 | -4/Factory | Repaired Cmb. Linear Gravjet 24974 | -4/Factory | Repaired Cmb. Linear Gravjet 25180 | -4/Factory | High security lockdown imminent 25198 | -4/Factory | Manually triggered Chute Trap 25198 | -4/Factory | Sucked down chute 25198 | -4/Factory | Entered Waste 25199 | -4/Waste | Met a frightened Derelict 25201 | -4/Waste | Spotted C-40 Crusher 25213 | -4/Waste | Destroyed C-40 Crusher 25230 | -4/Waste | Spotted C-40 Crusher 25235 | -4/Waste | Destroyed C-40 Crusher 25243 | -4/Waste | Spotted C-40 Crusher 25248 | -4/Waste | Spotted C-40 Crusher 25255 | -4/Waste | Destroyed C-40 Crusher 25293 | -4/Waste | Destroyed C-40 Crusher 25300 | -4/Waste | Spotted C-40 Crusher 25304 | -4/Waste | Destroyed C-40 Crusher 25308 | -4/Waste | Spotted C-40 Crusher 25313 | -4/Waste | Destroyed C-40 Crusher 25337 | -4/Waste | Warlord forces began an assault 25475 | -4/Waste | Discovered new exit (range 12) 25528 | -4/Waste | Entered Factory 25528 | -4/Factory | Accompanied by 19 allies 25534 | -4/Factory | Loaded intel: 8 recycling unit locations 25605 | -4/Factory | Lost 4 allies 25634 | -4/Factory | Discovered new exit (range 15) 25731 | -4/Factory | Lost 4 allies 25778 | -4/Factory | First assault squad dispatched 25808 | -4/Factory | Incoming assault squad redirected 26224 | -4/Factory | Incoming investigation squad redirected 26247 | -4/Factory | Build established: Hacker-Gunner 26299 | -4/Factory | Incoming investigation squad redirected 26305 | -4/Factory | Incoming investigation squad redirected 26312 | -4/Factory | System corruption reached 10% 26344 | -4/Factory | Incoming assault squad redirected 26358 | -4/Factory | Lost 3 parts (1n2u) 26434 | -4/Factory | Lost 3 parts (3w) 26445 | -4/Factory | Destroyed 7 combat bots 26502 | -4/Factory | Repaired Broken Cmb. Linear Gravjet? 26558 | -4/Factory | Incoming assault squad redirected 26665 | -4/Factory | Discovered new exit (range 6) 26694 | -4/Factory | Incoming investigation squad redirected 26701 | -4/Factory | Imp. Hacking Suite fried by hacking feedback 26730 | -4/Factory | Incoming investigation squad redirected 26798 | -4/Factory | Incoming assault squad redirected 26803 | -4/Factory | Incoming assault squad redirected 26831 | -4/Factory | Entered Upper Caves 26832 | -4/Upper Caves | Identified exit to Upper Caves 27039 | -4/Upper Caves | Build established: Gunner 27049 | -4/Upper Caves | Entered another Upper Caves area 27050 | -4/Upper Caves | Identified exit to Research 27176 | -4/Upper Caves | Discovered new exit (range 12) 27191 | -4/Upper Caves | Entered Zhirov 27191 | -4/Zhirov | Discovered new exit (range 3) 27202 | -4/Zhirov | Met Zhirov 27211 | -4/Zhirov | Found Alien Artifact 27211 | -4/Zhirov | Identified Integrated Dissipator 27211 | -4/Zhirov | Installed Integrated Dissipator, increased core heat dissipation (+20) 27270 | -4/Zhirov | Found Alien Artifact 27334 | -4/Zhirov | Learned location of Quarantine (-3) 27337 | -4/Zhirov | Zhirov requested help retrieving the SGEMP Prototype 27396 | -4/Zhirov | Entered Proximity Caves 27492 | -3/Proximity Caves | Lost 3 parts (1p1u1w) 27528 | -3/Proximity Caves | Attracted the attention of an 0b10 outpost 27541 | -3/Proximity Caves | Entered Research 27541 | -3/Research | Evolved 2 slots: Utility x2 27542 | -3/Research | Identified exit to Quarantine 27543 | -3/Research | Loaded intel: 6 scanalyzer locations 27544 | -3/Research | Loaded intel: 4 garrison access locations 27562 | -3/Research | Identified exit to DSF 27572 | -3/Research | Identified Transdimensional Reconstructor 27824 | -3/Research | Identified Vortex Chain Reactor 27864 | -3/Research | Incoming investigation squad redirected 27906 | -3/Research | Loaded intel: 5 recycling unit locations 27937 | -3/Research | Identified exit to Armory 27956 | -3/Research | Found Fusion Bomb Launcher 27986 | -3/Research | Found Prototype Hackware 28051 | -3/Research | Discovered new exit (range 15) 28051 | -3/Research | Spotted B-86 Titan 28074 | -3/Research | Build established: Hacker-Sprinter 28366 | -3/Research | Found Prototype Processor 28366 | -3/Research | Identified Spectral Analyzer 28387 | -3/Research | Found Prototype Launcher 28387 | -3/Research | Identified Com. Tesla Bomb Launcher 28392 | -3/Research | Found Prototype Device 28392 | -3/Research | Identified Exp. EM Disruption Field 28437 | -3/Research | Found Prototype Hackware 28437 | -3/Research | Identified Exp. System Shield (x2) 28791 | -3/Research | First assault squad dispatched 28797 | -3/Research | Fabricated Vortex Chain Reactor (x1) 28867 | -3/Research | Destroyed 7 combat bots 28923 | -3/Research | Build established: Hacker-Gunner 28949 | -3/Research | System corruption reached 10% 29193 | -3/Research | Found Fusion Bomb Launcher 29312 | -3/Research | Spotted B-86 Titan 29342 | -3/Research | Incoming investigation squad redirected 29346 | -3/Research | Scraphulk reinforcements arrived? 29352 | -3/Research | Scrapoids reinforcements arrived? 29390 | -3/Research | Incoming investigation squad redirected 29397 | -3/Research | Allies destroyed B-86 Titan 29428 | -3/Research | High security lockdown imminent 29431 | -3/Research | Discovered new exit (range 15) 29464 | -3/Research | Garrison activated, responded to threat 29492 | -3/Research | Entered Quarantine 29494 | -3/Quarantine | Loaded intel: 3 scanalyzer locations 29512 | -3/Quarantine | Found Alien Artifact 29512 | -3/Quarantine | Identified Phase Redirector 29513 | -3/Quarantine | Lost 3 allies 29618 | -3/Quarantine | Incoming investigation squad redirected 29672 | -3/Quarantine | Found Alien Artifact 29672 | -3/Quarantine | Identified Phase Armor 29688 | -3/Quarantine | Repaired Railgun 29742 | -3/Quarantine | First assault squad dispatched 29817 | -3/Quarantine | Found Alien Energy Cannon 29817 | -3/Quarantine | Identified Core Cannon 29939 | -3/Quarantine | Garrison activated, responded to threat 30040 | -3/Quarantine | Found Prototype Hackware 30044 | -3/Quarantine | Discovered new exit (range 13) 30065 | -3/Quarantine | Found Transdimensional Reconstructor 30066 | -3/Quarantine | Warped through subspace 30114 | -3/Quarantine | Warped through subspace 30269 | -3/Quarantine | Found Alien Artifact 30270 | -3/Quarantine | Identified Subatomic Replicator 30270 | -3/Quarantine | Used Subatomic Replicator to replicate Vortex Chain Reactor 30304 | -3/Quarantine | Incoming assault squad redirected 30324 | -3/Quarantine | Incoming assault squad redirected 30343 | -3/Quarantine | Found Alien Artifact 30343 | -3/Quarantine | Identified Hpw. Transdimensional Reconstructor 30343 | -3/Quarantine | Warped through subspace 30344 | -3/Quarantine | Core integrity fell below 50% 30459 | -3/Quarantine | Found Alien Artifact 30459 | -3/Quarantine | Identified Dimensional Node Initializer 30459 | -3/Quarantine | Initialized slip node 30474 | -3/Quarantine | Found Dimensional Node Initializer 30474 | -3/Quarantine | Initialized slip node 30476 | -3/Quarantine | Found Dimensional Node Initializer 30476 | -3/Quarantine | Initialized slip node 30482 | -3/Quarantine | Found Transdimensional Reconstructor 30484 | -3/Quarantine | Found Transdimensional Reconstructor 30485 | -3/Quarantine | Warped through subspace to slip node 30487 | -3/Quarantine | Core integrity fell below 20% 30492 | -3/Quarantine | Entered Research 30492 | -2/Research | Evolved 2 slots: Utility x2 30517 | -2/Research | Lost 11 parts (1p5n5w) 30547 | -2/Research | Found Prototype Device 30547 | -2/Research | Identified Exp. ECM Suite 30599 | -2/Research | Incoming investigation squad redirected 30613 | -2/Research | Scrapoids reinforcements arrived? 30672 | -2/Research | Spotted B-90 Cyclops 30700 | -2/Research | Found Exp. ECM Suite 30825 | -2/Research | Garrison activated, responded to threat 30874 | -2/Research | Identified Exp. Hacking Suite 30882 | -2/Research | Identified exit to Testing 30992 | -2/Research | First assault squad dispatched 30997 | -2/Research | Fabricated G-73 Enforcer (x3) 31010 | -2/Research | Incoming assault squad redirected 31016 | -2/Research | Incoming assault squad redirected 31053 | -2/Research | Repaired Cmb. Linear Gravjet? 31153 | -2/Research | Build established: Wizard-Gunner 31298 | -2/Research | Entered Testing 31320 | -2/Testing | System corruption reached 10% 31398 | -2/Testing | Repaired Imp. Antigrav System 31424 | -2/Testing | Repaired Cmb. Linear Gravjet 31499 | -2/Testing | Protovariant out of control (PG-YQF2PPTPYU) 31499 | -2/Testing | Unleashed a protovariant (PG-YQF2PPTPYU) 31637 | -2/Testing | Found Prototype Processor 31637 | -2/Testing | Identified Exp. Target Analyzer 31709 | -2/Testing | Incoming assault squad redirected 31722 | -2/Testing | Repaired Fusion Bomb Launcher 31830 | -2/Testing | Discovered new exit (range 11) 31849 | -2/Testing | Spotted Alpha 7 31866 | -2/Testing | Destroyed Alpha 7 31882 | -2/Testing | Rewired TB-EVP(L) 31884 | -2/Testing | Rewired E9-68L(L) 31927 | -2/Testing | Found Prototype Ballistic Cannon 31927 | -2/Testing | Identified Perforator 31929 | -2/Testing | Lost 4 parts (1n2u1w) 32024 | -2/Testing | Found Prototype Launcher 32024 | -2/Testing | Identified Containment Facilitator 32054 | -2/Testing | Protovariant out of control (PG-K4WTWCTPL7) 32054 | -2/Testing | Unleashed a protovariant (PG-K4WTWCTPL7) 32081 | -2/Testing | Spotted PG-YQF2PPTPYU 32082 | -2/Testing | Destroyed PG-YQF2PPTPYU 32187 | -2/Testing | Build established: Hacker-Gunner 32220 | -2/Testing | Found Prototype Device 32220 | -2/Testing | Identified AEGIS Remote Shield 32255 | -2/Testing | Spotted Striker 32264 | -2/Testing | Spotted Striker 32268 | -2/Testing | Spotted Alpha 7 32272 | -2/Testing | Stole the SGEMP Prototype 32273 | -2/Testing | Warped through subspace 32298 | -2/Testing | First assault squad dispatched 32314 | -2/Testing | Incoming assault squad redirected 32319 | -2/Testing | Incoming assault squad redirected 32325 | -2/Testing | Incoming assault squad redirected 32435 | -2/Testing | Spotted Fortress 32461 | -2/Testing | Incoming assault squad redirected 32470 | -2/Testing | Discovered new exit (range 6) 32470 | -2/Testing | Discovered new exit (range 6) 32472 | -2/Testing | Entered Protoforge 32484 | -2/Protoforge | Spotted Hotshot 32528 | -2/Protoforge | Repaired Cmb. Antigrav System 32541 | -2/Protoforge | Superfortress began startup sequence 32677 | -2/Protoforge | Identified exit to Access 32722 | -2/Protoforge | First assault squad dispatched 32775 | -2/Protoforge | Spotted Hotshot 32780 | -2/Protoforge | Spotted B-90 Cyclops 32793 | -2/Protoforge | Spotted Hotshot 32795 | -2/Protoforge | Spotted Hotshot 32803 | -2/Protoforge | Spotted Hotshot 32803 | -2/Protoforge | Spotted Hotshot 32803 | -2/Protoforge | Spotted AP7-3 32827 | -2/Protoforge | Spotted Hotshot 32827 | -2/Protoforge | Spotted Hotshot 32829 | -2/Protoforge | Destroyed Hotshot 32833 | -2/Protoforge | Destroyed Hotshot 32838 | -2/Protoforge | Spotted AP7-3 32883 | -2/Protoforge | Destroyed Hotshot 32883 | -2/Protoforge | Destroyed Hotshot 32942 | -2/Protoforge | Spotted EXE-6 32944 | -2/Protoforge | Lost 8 parts (1p2n3u2w) 32957 | -2/Protoforge | UFD initiated attack on Protoforge 32957 | -2/Protoforge | Loaded intel: 3 recycling unit locations 32973 | -2/Protoforge | Scrapoid reinforcements arrived 32978 | -2/Protoforge | Scrapoid reinforcements arrived 32990 | -2/Protoforge | Allies destroyed AP7-3 32994 | -2/Protoforge | Allies destroyed AP7-3 32994 | -2/Protoforge | Optimus greeted in Protoforge 33011 | -2/Protoforge | Destroyed Hotshot 33015 | -2/Protoforge | Spotted SKR-2 33016 | -2/Protoforge | Spotted SKR-2 33016 | -2/Protoforge | Found Prototype Ballistic Gun 33019 | -2/Protoforge | Lost 3 allies 33026 | -2/Protoforge | Identified Cep. XC Strikerail 33028 | -2/Protoforge | Spotted SKR-2 33036 | -2/Protoforge | Allies destroyed SKR-2 33053 | -2/Protoforge | Spotted EXE-6 33054 | -2/Protoforge | Spotted EXE-6 33059 | -2/Protoforge | Allies destroyed EXE-6 33065 | -2/Protoforge | Lost 3 allies 33068 | -2/Protoforge | Found Prototype Device 33068 | -2/Protoforge | Identified Exp. Kinecellerator 33071 | -2/Protoforge | Found Cep. XC Strikerail 33074 | -2/Protoforge | Found Prototype Processor 33074 | -2/Protoforge | Identified Exp. Core Analyzer 33076 | -2/Protoforge | Found Cep. XC Strikerail 33094 | -2/Protoforge | Found Exp. Armor Integrity Analyzer 33141 | -2/Protoforge | Lost 5 allies 33192 | -2/Protoforge | Spotted Striker 33192 | -2/Protoforge | Spotted Striker 33199 | -2/Protoforge | Destroyed Striker 33199 | -2/Protoforge | Allies destroyed Striker 33218 | -2/Protoforge | Fabricated Combat Drone Bay? 33226 | -2/Protoforge | Fabricated Combat Drone Bay? 33257 | -2/Protoforge | Fabricated Zero-point Reactor? 33270 | -2/Protoforge | Spotted Striker 33272 | -2/Protoforge | Destroyed Striker 33276 | -2/Protoforge | Destroyed Striker 33306 | -2/Protoforge | Build established: Scavenger-Gunner 33340 | -2/Protoforge | Destroyed 9 combat bots 33449 | -2/Protoforge | Spotted Executioner 33453 | -2/Protoforge | Destroyed Executioner 33458 | -2/Protoforge | Spotted Striker 33461 | -2/Protoforge | Spotted Striker 33470 | -2/Protoforge | Spotted Executioner 33471 | -2/Protoforge | Allies destroyed Striker 33476 | -2/Protoforge | Destroyed Executioner 33479 | -2/Protoforge | Spotted Executioner 33540 | -2/Protoforge | Spotted Striker 33568 | -2/Protoforge | Spotted Executioner 33579 | -2/Protoforge | Found Scrap Suit 33583 | -2/Protoforge | Destroyed Executioner 33593 | -2/Protoforge | Lost 3 parts (1n2w) 33593 | -2/Protoforge | Spotted Striker 33618 | -2/Protoforge | Lost 5 allies 33630 | -2/Protoforge | Allies destroyed Striker 33632 | -2/Protoforge | Spotted Striker 33668 | -2/Protoforge | Destroyed 7 combat bots 33675 | -2/Protoforge | Lost 4 allies 33681 | -2/Protoforge | Spotted Immortal 33683 | -2/Protoforge | Spotted Immortal 33684 | -2/Protoforge | Spotted Executioner 33696 | -2/Protoforge | Spotted Hotshot 33696 | -2/Protoforge | Spotted Hotshot 33696 | -2/Protoforge | Spotted Hotshot 33721 | -2/Protoforge | Spotted Hotshot 33723 | -2/Protoforge | Crushed by falling debris 33724 | -2/Protoforge | Core integrity fell below 50% 33757 | -2/Protoforge | Scanned by Researcher 33777 | -2/Protoforge | Found Prototype Device 33777 | -2/Protoforge | Identified Crosscalibrator 33794 | -2/Protoforge | Spotted Immortal 33795 | -2/Protoforge | Spotted Immortal 33796 | -2/Protoforge | Spotted Decapitator 33796 | -2/Protoforge | Spotted Decapitator 33796 | -2/Protoforge | Spotted Decapitator 33807 | -2/Protoforge | Additional patrols dispatched to research labs 33829 | -2/Protoforge | Found Cep. XC Strikerail 33832 | -2/Protoforge | Found Prototype Ballistic Cannon 33832 | -2/Protoforge | Identified Cep. Miniperforator 33849 | -2/Protoforge | System corruption reached 30% 33855 | -2/Protoforge | Destroyed Immortal 33873 | -2/Protoforge | Found Cep. XC Strikerail 33876 | -2/Protoforge | Found Cep. XC Strikerail 33881 | -2/Protoforge | Found Faulty Cep. Heavy Railcannon 33895 | -2/Protoforge | Destroyed Immortal 33900 | -2/Protoforge | Found Faulty Cep. Helical Railcannon 33904 | -2/Protoforge | Found Faulty Cep. Helical Railcannon 33905 | -2/Protoforge | Found Faulty Cep. Helical Railcannon 33913 | -2/Protoforge | Found Faulty Cep. XC Strikerail 33995 | -2/Protoforge | Spotted V037-p 33995 | -2/Protoforge | Spotted V146-e 33995 | -2/Protoforge | Spotted V749-u 34001 | -2/Protoforge | Destroyed 13 combat bots 34074 | -2/Protoforge | Found Prototype Device 34074 | -2/Protoforge | Identified Exp. System Purifier 34076 | -2/Protoforge | Found Exp. System Purifier 34093 | -2/Protoforge | UFD reported confirmed Drillbomb installation 34123 | -2/Protoforge | Found Prototype Storage 34123 | -2/Protoforge | Identified Cep. Chromion Battery 34143 | -2/Protoforge | Spotted Executioner 34143 | -2/Protoforge | Destroyed Executioner 34145 | -2/Protoforge | Spotted Executioner 34146 | -2/Protoforge | Destroyed Executioner 34147 | -2/Protoforge | Spotted Striker 34160 | -2/Protoforge | Spotted Executioner 34161 | -2/Protoforge | Destroyed Executioner 34169 | -2/Protoforge | Spotted Executioner 34203 | -2/Protoforge | Destroyed Striker 34221 | -2/Protoforge | Found Prototype Device 34221 | -2/Protoforge | Identified Adv. Kinecellerator 34229 | -2/Protoforge | Destroyed Hotshot 34264 | -2/Protoforge | Destroyed Executioner 34275 | -2/Protoforge | Spotted Executioner 34305 | -2/Protoforge | Spotted Executioner 34305 | -2/Protoforge | Destroyed Executioner 34308 | -2/Protoforge | Spotted Decapitator 34309 | -2/Protoforge | Destroyed Decapitator 34309 | -2/Protoforge | Spotted Decapitator 34310 | -2/Protoforge | P-80 Master assimilated allied Lugger 825 34310 | -2/Protoforge | Spotted Decapitator 34327 | -2/Protoforge | Spotted Executioner 34372 | -2/Protoforge | Lost 18 allies 34401 | -2/Protoforge | Spotted Executioner 34401 | -2/Protoforge | Spotted Executioner 34401 | -2/Protoforge | Destroyed Executioner 34404 | -2/Protoforge | Destroyed Executioner 34409 | -2/Protoforge | Spotted Executioner 34410 | -2/Protoforge | Spotted Striker 34437 | -2/Protoforge | Found 0bPrime Scrap Suit 34438 | -2/Protoforge | Spotted Striker 34460 | -2/Protoforge | Spotted Striker 34466 | -2/Protoforge | Destroyed Striker 34523 | -2/Protoforge | Spotted Executioner 34524 | -2/Protoforge | Spotted Executioner 34527 | -2/Protoforge | Destroyed Executioner 34528 | -2/Protoforge | Destroyed Executioner 34563 | -2/Protoforge | Found Exp. Core Analyzer 34574 | -2/Protoforge | Destroyed 12 combat bots 34620 | -2/Protoforge | Spotted Striker 34627 | -2/Protoforge | Spotted Striker 34631 | -2/Protoforge | Destroyed Striker 34653 | -2/Protoforge | Spotted Striker 34656 | -2/Protoforge | Spotted Executioner 34656 | -2/Protoforge | Destroyed Executioner 34660 | -2/Protoforge | Destroyed Striker 34681 | -2/Protoforge | Destroyed 7 combat bots 34692 | -2/Protoforge | Lost 4 allies 34717 | -2/Protoforge | Spotted Striker 34720 | -2/Protoforge | Spotted Striker 34815 | -2/Protoforge | UFD reported confirmed Drillbomb installation 34834 | -2/Protoforge | Spotted Striker 34834 | -2/Protoforge | Spotted Executioner 34840 | -2/Protoforge | Destroyed Striker 34904 | -2/Protoforge | Found Exp. System Purifier 34913 | -2/Protoforge | Destroyed 7 combat bots 34929 | -2/Protoforge | Found Exp. System Purifier 34934 | -2/Protoforge | Found Cep. Weapon Articulator 34936 | -2/Protoforge | Found Cep. Weapon Articulator 34952 | -2/Protoforge | Spotted Executioner 34954 | -2/Protoforge | Spotted Striker 34954 | -2/Protoforge | Destroyed Executioner 34973 | -2/Protoforge | Spotted Executioner 34976 | -2/Protoforge | Spotted Striker 34981 | -2/Protoforge | Destroyed Executioner 35002 | -2/Protoforge | UFD reported confirmed Drillbomb installation 35008 | -2/Protoforge | Destroyed Striker 35024 | -2/Protoforge | Spotted Executioner 35024 | -2/Protoforge | Spotted Striker 35024 | -2/Protoforge | Destroyed Executioner 35033 | -2/Protoforge | Found 0bPrime Scrap Suit 35040 | -2/Protoforge | Destroyed Striker 35045 | -2/Protoforge | Spotted Executioner 35046 | -2/Protoforge | Destroyed Executioner 35047 | -2/Protoforge | Spotted Striker 35049 | -2/Protoforge | Destroyed Striker 35075 | -2/Protoforge | Destroyed 13 combat bots 35107 | -2/Protoforge | UFD reported confirmed Drillbomb installation 35138 | -2/Protoforge | Installed UFD Drillbomb at designated target 35138 | -2/Protoforge | UFD reported confirmed Drillbomb installation 35152 | -2/Protoforge | Spotted Executioner 35153 | -2/Protoforge | Spotted Executioner 35153 | -2/Protoforge | Spotted Striker 35153 | -2/Protoforge | Destroyed Executioner 35155 | -2/Protoforge | Spotted Executioner 35180 | -2/Protoforge | Destroyed Striker 35184 | -2/Protoforge | Destroyed Executioner 35186 | -2/Protoforge | Destroyed Executioner 35234 | -2/Protoforge | Spotted Striker 35238 | -2/Protoforge | Destroyed Striker 35238 | -2/Protoforge | Spotted Striker 35271 | -2/Protoforge | Spotted Executioner 35271 | -2/Protoforge | Spotted Executioner 35274 | -2/Protoforge | Destroyed Executioner 35292 | -2/Protoforge | Found Exp. Targeting Computer 35322 | -2/Protoforge | Spotted Executioner 35323 | -2/Protoforge | Spotted Executioner 35324 | -2/Protoforge | Spotted Striker 35332 | -2/Protoforge | Spotted Executioner 35338 | -2/Protoforge | Spotted Executioner 35339 | -2/Protoforge | Spotted Striker 35348 | -2/Protoforge | Spotted 02F31-K 35360 | -2/Protoforge | Destroyed 02F31-K 35362 | -2/Protoforge | P-80 Master assimilated allied 02FES-D 35366 | -2/Protoforge | Destroyed Striker 35375 | -2/Protoforge | Destroyed Executioner 35377 | -2/Protoforge | Core integrity fell below 20% 35384 | -2/Protoforge | Destroyed Executioner 35393 | -2/Protoforge | Destroyed Executioner 35410 | -2/Protoforge | Spotted Executioner 35412 | -2/Protoforge | Spotted Striker 35414 | -2/Protoforge | Destroyed 8 combat bots 35415 | -2/Protoforge | Spotted Executioner 35417 | -2/Protoforge | Spotted Striker 35420 | -2/Protoforge | Lost 7 allies 35424 | -2/Protoforge | Lost 5 parts (2n3w) 35446 | -2/Protoforge | P-80 Master assimilated allied 8Q-ACY(E) 35475 | -2/Protoforge | Lost 5 allies 35487 | -2/Protoforge | Spotted Executioner 35489 | -2/Protoforge | Destroyed 8 combat bots 35492 | -2/Protoforge | Spotted Executioner 35493 | -2/Protoforge | Lost 5 parts (1n1u3w) 35497 | -2/Protoforge | Destroyed Executioner 35527 | -2/Protoforge | Found Exp. Core Analyzer 35532 | -2/Protoforge | Found 0bPrime Scrap Suit 35535 | -2/Protoforge | Spotted Striker 35614 | -2/Protoforge | Spotted Striker 35614 | -2/Protoforge | Spotted Striker 35661 | -2/Protoforge | Lost 4 allies 35672 | -2/Protoforge | UFD reported confirmed Drillbomb installation 35735 | -2/Protoforge | Spotted Striker 35740 | -2/Protoforge | Spotted Striker 35769 | -2/Protoforge | Spotted Striker 35770 | -2/Protoforge | Spotted Executioner 35772 | -2/Protoforge | Destroyed by Executioner with Helical Railgun Last Messages --------------- 35751_ N-04 Retriever collects Hvy. Machine Gun. 35751_ Slug penetrates 02FGH-D. 35751_ Slug penetrates Wall. 35753_ Slug penetrates B-74 Champion. 35753_ S-43 Plague destroyed. 35753_ G-73 Enforcer Unknown Leg blasted off. 35753_ G-73 Enforcer Unknown Energy Gun blasted off. 35754_ Slug penetrates B-74 Champion. 35755_ 02FGH-D destroyed. 35756_ Slug penetrates B-74 Champion. 35756_ B-74 Champion destroyed. 35756_ Slug penetrates G-73 Enforcer. 35756_ Destroyed Lgt. Quantum Reactor. 35756_ G-73 Enforcer Unknown Leg blasted off. 35756_ G-73 Enforcer destroyed. 35760_ Acquired 185 matter. 35766_ Slug penetrates 02FGI-D. 35771_ Striker Adv. Heat Sink blasted off. 35772_ Slug penetrates 02FGF-D. 35772_ Slug penetrates Lugger 737. Map ----- +----------------------------------------------------+ | #????????????# #######"""""##"""""##"" | | #????????????# ### ###""" % #### | | #????????????# # "%" ! ### | | #????????????+ C# # ! ### | | #????????????# EK# " # ### | | #????????????# # "" "# ### | | #????????????# # " "# ### | | #????????????# # " ""# =### | | ############## # # =!### | | ########### # ####""#"%=!## | | ?????????##? ; # !!!#*# | | ?????????##?"<% + # !%=%!## | | ??#########??% # "" # =!==% | | ??############ # # %!! | | ??## # # " # !"=%%! | | ??## # # # !=%= ==#" | | ??##? ; # " # !#!! " # | | ??## ; =;% # "%=%* # | | ??## """""" ;%%%%[% # "* " | | ??## """ "]%%s%%[!% ####""#! =%! # | | ??## """"" !!=!!s%=[%;#;;###### =%%%"# | | ??## /%!!!%%!%% # ## =%!=" # | | ??#########;;]!A%!!=![= ; =%=! ## | | ??## /!/!!%!%!=! ; =% !!* | | ??## ""[!%]%!*[!%[[ ; # ##[!% = | | ??## """"#%!@=!*[=|!%!!*; [#%=%#|! | | ??## """"; =!=%= =*==%!%[ ## *[## | | ??## """"# /%%=!%!%*%!*!!%/ %m=#[# | | ??## ;*===* =%!%=%=!!!!| #[] / | | ??## # *%!%/=*%!![%%*==!] !**%!** | | ??## # =%/%!=*!=%!%[[%%[% !==%%=% | | ############";=!=%! !*%%/!==%%%!=![%=[=[! | | ######### ###; [=[[ [[=%%%=!/=%=*%=%|%!%! | | # # %=!!!==*! !!*! [= %% *% | | #"" % % # [ =*[%!=%==[!*=*! = | | #"" #" * !!%[!][[!! | | #"T ; ! =! / % % | | #"" """" ; !%!![ ! !! % | | #"" """" + =[%*/%[[ =%!%!!% %&% | | # """" # !!*%!==%= = ![[% %% """# | | # """" # =[!!=%%!*=% ![= %%%= | | # """" ;;##%[*;#;!!;;;; !%! % %" | | # """" ; ![!!="*%!;;##;;[""!= %" " | | # %% # !!%| ## =="/!% " " | | # [%* + %= ## """ "=%%%" " | | ##########+### ## """" "! " | | # #######;;#### """" #! # | | # # "#### """" # # | | # """ """ # "" "" + ## # # | | # """ """ # ""T"" # + + # | +----------------------------------------------------+ Best States ------------- Heat Dissipation 107 Coolant Potential 120 Energy Generation 66 Energy Capacity 930 Matter Stores 300 Matter Capacity 300 Sight Range 23 Terrain Scan Range 20 Terrain Scan Density 210 Power Amplification 80 EM Shielding 2 Corruption Containment 12 Armor Coverage 225 Resistance: KI 30 Resistance: EX 75 Propulsion Shielding 90 Weapon Shielding 90 Point Defense Rating 80 Evasion (%) 64 Targeting Accuracy 42 Target Analysis 14 Core Analysis 8 Armor Integrity Analysis 50 Recoil Reduction 12 Matter Filtering 50 Kinecelleration 50 Salvage Targeting 4 Offensive Hacking 40 Defensive Hacking 32 Authchip Count 1 Item Schematics ----------------- Exp. Sensor Array | -9/Materials | Scanalyzed Imp. Assault Rifle | -9/Materials | Scanalyzed Cld. Ion Engine | -9/Materials | Scanalyzed Targeting Computer | -9/Materials | Extracted Lgt. Armor Plating | -9/Materials | Extracted Heat Sink | -9/Materials | Extracted Flail | -9/Materials | Extracted Lgt. Treads | -9/Materials | Extracted Particle Gun | -9/Materials | Extracted Med. Storage Unit | -9/Materials | Extracted Spread Laser | -9/Materials | Extracted VTOL Module | -9/Materials | Extracted Ion Engine | -9/Materials | Extracted Com. Wheel | -9/Materials | Extracted Hrd. Light Armor Plating | -9/Materials | Extracted Plasma Cutter | -9/Recycling | Hacked Gravmag System | -9/Recycling | Hacked Imp. Targeting Computer | -9/Recycling | Hacked Gravmag Array | -6/Factory | Scanalyzed Machine Analyzer | -6/Factory | Scanalyzed F-cell Engine | -6/Factory | Scanalyzed System Restoration Module | -6/Factory | Scanalyzed Imp. Heavy Machine Gun | -6/Factory | Scanalyzed System Shield | -6/Factory | Scanalyzed Imp. Gravmag System | -6/Factory | Scanalyzed Hpw. Tractor Beam | -6/Factory | Scanalyzed Coil Gun | -6/Factory | Scanalyzed Adv. Heat Sink | -6/Factory | Scanalyzed Cmb. Airjet | -6/Factory | Scanalyzed Adv. Targeting Computer | -6/Factory | Scanalyzed Combat Drone Bay | -6/Data Miner | Free Lgt. Regenerative Plating | -6/Data Miner | Free Cld. Nuclear Pulse Thruster | -6/Data Miner | Free Imp. Matter Compressor | -6/Data Miner | Free Ionic Axe | -6/Data Miner | Free Centrium Wheel | -6/Data Miner | Free Adv. Trap Scanner | -6/Data Miner | Free Hvy. Disruptor Cannon | -6/Data Miner | Free Adv. Power Amplifier | -6/Data Miner | Free Imp. Plasma Cutter | -6/Data Miner | Free Adv. Transmission Jammer | -6/Data Miner | Free Nova Cannon | -6/Data Miner | Free Mic. Antimatter Reactor | -6/Data Miner | Free Enh. Gauss Cannon | -5/Factory | Scanalyzed Antigrav System | -5/Factory | Scanalyzed 0b10 Decoder Chip [Skirmisher] | -5/Factory | Scanalyzed Cmb. Linear Gravjet | -5/Factory | Scanalyzed Adv. Recoil Stabilizer | -4/Factory | Scanalyzed Assault Drone Bay | -4/Zhirov | Free Exp. Heat Sink | -4/Zhirov | Free Exp. Optical Array | -4/Zhirov | Free Imp. Arc Thrower | -4/Zhirov | Free Vortex Chain Reactor | -3/Research | Scanalyzed Linear Accelerator | -3/Research | Scanalyzed Zero-point Reactor | -3/Research | Hacked Enh. Hardcell Cannon | -2/Testing | Scanalyzed Com. Particle Reactor | -2/Testing | Scanalyzed Com. Tesla Bomb Launcher | -2/Testing | Archive Prc. Matter Filter | -2/Testing | Archive Com. Mass Driver | -2/Testing | Hacked Helical Railgun | -2/Testing | Hacked Adv. Plasma Rifle | -2/Protoforge | Archive Ragnarok Missile Launcher | -2/Protoforge | Archive Molecular Scythe | -2/Protoforge | Archive Imp. Matter Neutralizer | -2/Protoforge | Archive Exp. Core Analyzer | -2/Protoforge | Archive Hvy. Dispersion Rifle | -2/Protoforge | Archive Imp. Quantum Reactor | -2/Protoforge | Archive Cld. Q-thruster | -2/Protoforge | Archive Enh. Armored Heavy Treads | -2/Protoforge | Archive Exp. Cloaking Device | -2/Protoforge | Archive Robot Schematics ------------------ M-13 Machinist | -9/Recycling | Hacked S-27 Virus | -6/Data Miner | Free R-10 Processor | -6/Data Miner | Free G-50 Soldier | -6/Data Miner | Free B-60 Warrior | -6/Data Miner | Free W-44 Eye | -6/Data Miner | Free M-30 Cleanser | -6/Data Miner | Free D-63 Destroyer | -5/Factory | Downloaded A-02 Transporter | -2/Testing | Archive B-74 Champion | -2/Testing | Archive R-06 Scavenger | -2/Protoforge | Archive Fabricated ------------ Imp. Gravmag System | x2 | -6/Factory | Preloaded Imp. Gravmag System | x2 | -6/Factory Gravmag Array | x1 | -6/Factory Imp. Gravmag System | x2 | -6/Factory Cmb. Linear Gravjet | x2 | -5/Factory Vortex Chain Reactor | x1 | -3/Research G-73 Enforcer | x3 | -2/Research | Preloaded Combat Drone Bay | x1 | -2/Protoforge Combat Drone Bay | x1 | -2/Protoforge Zero-point Reactor | x1 | -2/Protoforge Repaired ---------- Hvy. Assault Rifle | 54% | -9/Materials Hvy. Assault Rifle | 49% | -9/Materials Gravmag System | 24% | -6/Factory Gravmag System | 17% | -6/Factory Imp. Heavy Machine Gun | 19% | -6/Factory Scatter Rocket Array | 45% | -6/Factory Coil Gun | 71% | -6/Factory Coil Gun | 18% | -6/Factory Coil Gun | 24% | -6/Factory Cmb. Airjet | 1% | -5/Factory Cmb. Airjet | 35% | -5/Factory Cmb. Airjet | 50% | -5/Factory | Broken Enh. Gauss Cannon | 20% | -4/Factory Hardcell Cannon | 32% | -4/Factory Cmb. Linear Gravjet | 40% | -4/Factory Cmb. Linear Gravjet | 41% | -4/Factory Cmb. Linear Gravjet | 37% | -4/Factory | Broken Railgun | 23% | -3/Quarantine Cmb. Linear Gravjet | 8% | -2/Research Imp. Antigrav System | 15% | -2/Testing Cmb. Linear Gravjet | 38% | -2/Testing Fusion Bomb Launcher | 33% | -2/Testing Cmb. Antigrav System | 50% | -2/Protoforge Alien Tech Used ----------------- Core Expander Integrated Dissipator Phase Redirector Phase Armor Core Cannon Transdimensional Reconstructor Subatomic Replicator High-powered Transdimensional Reconstructor Dimensional Node Initializer Achievements -------------- Perfect Aim Challenges ------------ None Game ------ Seed RecyclingParticleClaymores Manual? 0 Play Time 14:24:49 Cumulative 523.5 hours Start 2025.08.12 @ 14:06:26 End 2025.08.14 @ 22:49:59 Sessions 13 Manual Loads 0 Difficulty Rogue Special Mode None Game No. 277 Rogue 277 Adventurer 0 Explorer 0 Win Type - Total 5 Types 3/0/1/1/0/0/0/0/0/0 Lore% 86 Gallery% 77 Achievement% 68 Wizard Run 0 Options --------- Layout 2 ASCII 0 Keyboard 1 Movement Vi Keybinds 0 Fullscreen 1 Font 16/Tamsyn Map View 55x47 Zoom Use 0% Tactical HUD 1 Map Filters NONE Filters NONE Steam 0 RUN: b0ec975a-b1ed-434b-b676-7f705f5e3129